Body Name,Body,Service Level,Expense Type,Expense Code,Narrative,Date,Transaction Number,Amount,Capital and Revenue,Supplier Name,Supplier ID
South Ribble Council,http://statistics.data.gov.uk/doc/local-authority/30UN,Area 2 - Waste Transport/Eastern & Central Teams,Materials General,4040,Air dryer valve PJ62UCG JFC14804,01/07/2020,0000457150,296.56,Revenue,AA UK CV t/a Hydrair Truck & Trailer,132664
South Ribble Council,http://statistics.data.gov.uk/doc/local-authority/30UN,Area 2 - Waste Transport/Eastern & Central Teams,Materials General,4040,"2x brake yolks, 2x brake pins, 3x bump stops, 2x sets brake shoes, VU58 JXK, JFC14820 (NAME REDACTED)",01/07/2020,0000457199,271.28,Revenue,AA UK CV t/a Hydrair Truck & Trailer,132664
South Ribble Council,http://statistics.data.gov.uk/doc/local-authority/30UN,HR & Communications,Training Expense-Course Fees,1402,TRAINING Annual subscription to training course (up to 52 different courses) Delegates: NAMES REDACTED,10/07/2020,0000456969,"1,755.00",Revenue,ABC FOOD LAW,132538
South Ribble Council,http://statistics.data.gov.uk/doc/local-authority/30UN,Property Services,Rep & Maint Premises,2020,Please supply the skip going now & replacement . 2x 16yard skips. As per NAME REDACTED Total. 550.  Civic Centre,31/07/2020,0000457895,275.00,Revenue,ABLE SKIP HIRE LTD,00042495
South Ribble Council,http://statistics.data.gov.uk/doc/local-authority/30UN,Housing,Cap Grant- Improve Grants,C570,DFG WORKS TO BATHROOM AT ADDRESS REDACTED AS PER QUOTE SUPPLIED. YOUR HOUSING GROUP TO PAY 50% OF 4065.00 ,15/07/2020,0000457557,"2,032.50",Revenue,Access-Able UK LTD,132752
South Ribble Council,http://statistics.data.gov.uk/doc/local-authority/30UN,Shared Financial Services,Materials General,4040,Banister Brook House - 4 Camera 2 Tb Hybrid NVR Recorder + maintenance.,03/07/2020,0000457316,805.80,Revenue,ADT FIRE & SECURITY PLC,131052
South Ribble Council,http://statistics.data.gov.uk/doc/local-authority/30UN,Area 2 - Waste Transport/Eastern & Central Teams,Materials General,4040,1 x water pump 1 x alternator belt AE14AYG JFC14892,15/07/2020,0000457526,514.94,Revenue,AEBI SCHMIDT UK LTD,00085672
South Ribble Council,http://statistics.data.gov.uk/doc/local-authority/30UN,Revenues Plus,Professional Fees,4520,Council Tax Support Scheme 2021/22,31/07/2020,0000457515,650.00,Revenue,AIREY CONSULTANCY LTD T/A ACS LTD,00089212
South Ribble Council,http://statistics.data.gov.uk/doc/local-authority/30UN,Revenues Plus,Professional Fees,4520,Hardship Policy,31/07/2020,0000457918,550.00,Revenue,AIREY CONSULTANCY LTD T/A ACS LTD,00089212
South Ribble Council,http://statistics.data.gov.uk/doc/local-authority/30UN,Revenues Plus,Financial,4811,post office trans,17/07/2020,0000457445,605.84,Revenue,ALLPAY LTD,00122276
South Ribble Council,http://statistics.data.gov.uk/doc/local-authority/30UN,Revenues Plus,Financial,4811,paypoint trans,17/07/2020,0000457445,76.00,Revenue,ALLPAY LTD,00122276
South Ribble Council,http://statistics.data.gov.uk/doc/local-authority/30UN,Revenues Plus,Financial,4811,webconn,17/07/2020,0000457445,46.00,Revenue,ALLPAY LTD,00122276
South Ribble Council,http://statistics.data.gov.uk/doc/local-authority/30UN,Legal,Legal,4821,PROFESSIONAL ADVICE IN RESPECT OF POTENTIAL GREEN VILLAGE IN THE GREEN BELT,03/07/2020,0000457312,"1,000.00",Revenue,ANJOLI FOSTER,133141
South Ribble Council,http://statistics.data.gov.uk/doc/local-authority/30UN,Housing,Cap Grant- Improve Grants,C570,DFG WORKS TO BATHROOM AT ADDRESS REDACTED AS PER SRBC PLANS AND QUOTE SUPPLIED OF 4403.16 CLIENT 640.33,15/07/2020,0000457558,"3,762.83",Revenue,APG DOMESTIC SERVICES,00061463
South Ribble Council,http://statistics.data.gov.uk/doc/local-authority/30UN,Housing,Cap Grant- Improve Grants,C570,DFG WORKS TO BATHROOM AT ADDRESS REDACTED AS PER QUOTE SUPPLIED. Total grant cost 4137.79,17/07/2020,0000457616,"4,137.79",Revenue,APG DOMESTIC SERVICES,00061463
South Ribble Council,http://statistics.data.gov.uk/doc/local-authority/30UN,Neighbourhood Admin & Support,Clothing- Uniforms & Laundry,4410,Medical Face Mask Type 11R 14683 (50 per box) - B441896 As per your quotation 24031421,08/07/2020,0000457197,565.50,Revenue,ARCO,00014096
South Ribble Council,http://statistics.data.gov.uk/doc/local-authority/30UN,Neighbourhood Admin & Support,Clothing- Uniforms & Laundry,4410,Medical Face Mask Type 11R 14683 (50 per box) - B441896 As per your quotation 24031421,08/07/2020,0000457248,780.00,Revenue,ARCO,00014096
South Ribble Council,http://statistics.data.gov.uk/doc/local-authority/30UN,Property Services,Fixtures and Fittings,2611,For Civic Centre please attend site next week for removal works associated with the shared services move�.as per NAME REDACTED ,22/07/2020,0000457614,300.00,Revenue,Army Ants Removers Ltd,133062
South Ribble Council,http://statistics.data.gov.uk/doc/local-authority/30UN,Property Services,Fixtures and Fittings,2611,invoice dated 13/05/2020 ref PO PUR TBA - 3 x staff labour 6 hrs for removal of furniture and put into onsite skips as per NAME REDACTED,22/07/2020,0000457615,450.00,Revenue,Army Ants Removers Ltd,133062
South Ribble Council,http://statistics.data.gov.uk/doc/local-authority/30UN,Housing,Capital Expenditure,C230,"conversion works and create 9 self contained flats as tendered at Pearson House, Station Road, Bamber Bridge, work to commence 1st June 2020",24/07/2020,0000457580,"28,500.00",Revenue,ASH BARN CONSTRUCTION LTD,00081278
South Ribble Council,http://statistics.data.gov.uk/doc/local-authority/30UN,Housing,Capital Expenditure,C230,"conversion works and create 9 self contained flats as tendered at Pearson House, Station Road, Bamber Bridge, work to commence 1st June 2020",24/07/2020,0000457585,"28,500.00",Revenue,ASH BARN CONSTRUCTION LTD,00081278
South Ribble Council,http://statistics.data.gov.uk/doc/local-authority/30UN,HR & Communications,Advertising,4848,Annual fee for the monthly e-newsletter distribution,17/07/2020,0000457452,948.00,Revenue,ATTAIN GROUP LIMITED,132604
South Ribble Council,http://statistics.data.gov.uk/doc/local-authority/30UN,Democratic Services,Repair Costs,4059,"15 x DCAB-P-CAT/5 - Diplomat Patch USB Cable (USB/SPKN) 5m, 15 x DCAB-P/5 - Diplomat Patch Cable (CAT5E S/FTP) 5m + Shipping",24/07/2020,0000457743,399.50,Revenue,AUDITEL,130495
South Ribble Council,http://statistics.data.gov.uk/doc/local-authority/30UN,Information Services,Peripherals,4246,"To enable Virtual Committees, as per quote 2230 v2",22/07/2020,0000457745,"6,718.00",Revenue,AUDITEL,130495
South Ribble Council,http://statistics.data.gov.uk/doc/local-authority/30UN,Area 2 - Waste Transport/Eastern & Central Teams,Stationery,4136,50 Consignment Note NCR sets� as per quote no. 154905 dated  12/06/2020,24/07/2020,0000457356,302.00,Revenue,B & D PRINT SERVICES LTD,00015134
South Ribble Council,http://statistics.data.gov.uk/doc/local-authority/30UN,Area 2 - Waste Transport/Eastern & Central Teams,Materials General,4040,wheel 18744,03/07/2020,0000455947,57.60,Revenue,BALMERS GM LTD,00016023
South Ribble Council,http://statistics.data.gov.uk/doc/local-authority/30UN,Area 2 - Waste Transport/Eastern & Central Teams,Materials General,4040,AXLE 19299,03/07/2020,0000455947,69.00,Revenue,BALMERS GM LTD,00016023
South Ribble Council,http://statistics.data.gov.uk/doc/local-authority/30UN,Area 2 - Waste Transport/Eastern & Central Teams,Materials General,4040,WHEEL 34060,03/07/2020,0000455947,54.56,Revenue,BALMERS GM LTD,00016023
South Ribble Council,http://statistics.data.gov.uk/doc/local-authority/30UN,Area 2 - Waste Transport/Eastern & Central Teams,Materials General,4040,AXLE 27151,03/07/2020,0000455947,34.64,Revenue,BALMERS GM LTD,00016023
South Ribble Council,http://statistics.data.gov.uk/doc/local-authority/30UN,Area 2 - Waste Transport/Eastern & Central Teams,Materials General,4040,BOLT 19M10348,03/07/2020,0000455947,6.71,Revenue,BALMERS GM LTD,00016023
South Ribble Council,http://statistics.data.gov.uk/doc/local-authority/30UN,Area 2 - Waste Transport/Eastern & Central Teams,Materials General,4040,BONNET CATCH 21195,03/07/2020,0000455947,34.48,Revenue,BALMERS GM LTD,00016023
South Ribble Council,http://statistics.data.gov.uk/doc/local-authority/30UN,Area 2 - Waste Transport/Eastern & Central Teams,Materials General,4040,BEARING CAP,03/07/2020,0000455947,41.07,Revenue,BALMERS GM LTD,00016023
South Ribble Council,http://statistics.data.gov.uk/doc/local-authority/30UN,Area 2 - Waste Transport/Eastern & Central Teams,Materials General,4040,wheel 18744,03/07/2020,0000455947,11.96,Revenue,BALMERS GM LTD,00016023
South Ribble Council,http://statistics.data.gov.uk/doc/local-authority/30UN,Area 2 - Waste Transport/Eastern & Central Teams,Materials General,4040,BLADES 15881,03/07/2020,0000455947,72.78,Revenue,BALMERS GM LTD,00016023
South Ribble Council,http://statistics.data.gov.uk/doc/local-authority/30UN,Property Services,Rep & Maint Premises,2020,"electrical work on 3rd floor  for office move. Remove existing power points and data cables, install new power points  ",15/07/2020,0000457411,"1,984.44",Revenue,BELEC ELECTRICAL LTD,130290
South Ribble Council,http://statistics.data.gov.uk/doc/local-authority/30UN,Property Services,Licence Fees,4886,"EPC works, at units 6-7-8 Heaton street. Replace 6 lights to LED`s and fitting a hardwired heater into unit 7 toilet area. As per NAME REDACTED",10/07/2020,0000457412,654.00,Revenue,BELEC ELECTRICAL LTD,130290
South Ribble Council,http://statistics.data.gov.uk/doc/local-authority/30UN,Revenues Plus,Professional Fees,4520,One Technical Consultancy,08/07/2020,0000456906,400.00,Revenue,CAPITA BUSINESS SERVICES LTD,00122179
South Ribble Council,http://statistics.data.gov.uk/doc/local-authority/30UN,Revenues Plus,Professional Fees,4520,Covid 19 Expanded Retail Discount 20/21 and Covid 19 Grant Funded Scheme,08/07/2020,0000457101,"4,300.00",Revenue,CAPITA BUSINESS SERVICES LTD,00122179
South Ribble Council,http://statistics.data.gov.uk/doc/local-authority/30UN,Planning,Agency Fees,1121,Remote validation support for Development Management,29/07/2020,0000457748,"1,000.07",Revenue,CAPITA PROPERTY AND INFRASTRUCTURE LTD,131347
South Ribble Council,http://statistics.data.gov.uk/doc/local-authority/30UN,Environmental Health,Licence Fees,488B,fee jul to sept 2020,31/07/2020,0000457858,"1,125.00",Revenue,Carr Street Community Centre,130312
South Ribble Council,http://statistics.data.gov.uk/doc/local-authority/30UN,Property Services,Rep & Maint Premises,2020,credit 8077006 taken twice paying one ampunt back,24/07/2020,0000457765,"2,767.43",Revenue,CHUBB LTD,00090625
South Ribble Council,http://statistics.data.gov.uk/doc/local-authority/30UN,Democratic Services,Training Expense-Course Fees,1406,Cllr NAME REDACTED,24/07/2020,0000457655,175.00,Revenue,CIPFA BUSINESS LTD,00017187
South Ribble Council,http://statistics.data.gov.uk/doc/local-authority/30UN,Democratic Services,Training Expense-Course Fees,1406,NAME REDACTED,24/07/2020,0000457655,175.00,Revenue,CIPFA BUSINESS LTD,00017187
South Ribble Council,http://statistics.data.gov.uk/doc/local-authority/30UN,Regeneration,Contributions,4730,"For Payment of Grant 2020/21 as per Service Level Agreement March 2020,  Instalment 1 less lease of office space in the Civic Centre 15,000",10/07/2020,0000456939,"15,000.00",Revenue,Citizens Advice Lancashire,00017349
South Ribble Council,http://statistics.data.gov.uk/doc/local-authority/30UN,Information Services,Peripherals,4248,"Licence, Support and Maintenance - LSM12070MGV - for period 01/09/20 - 31/08/21. Modern.gov Annual Licenses Support and Maintenance ",24/07/2020,0000457778,"13,448.75",Revenue,CIVICA UK LTD,00102717
South Ribble Council,http://statistics.data.gov.uk/doc/local-authority/30UN,Information Services,Peripherals,4241,1 x  4 port USB hub @ 8.92;  2 x Magic Mouse @ 62.95 each; 2 x Magic Keyboard 79.95 each and 2 x Apple AV Adaptor 62.48 each,29/07/2020,0000457852,419.68,Revenue,CPC Re: COMBINED PRECISION COMPONENTS PLC,00017954
South Ribble Council,http://statistics.data.gov.uk/doc/local-authority/30UN,Information Services,Peripherals,4241,Po used by inv882810 cancelled by credit 2387503,29/07/2020,0000457871,419.68,Revenue,CPC Re: COMBINED PRECISION COMPONENTS PLC,00017954
South Ribble Council,http://statistics.data.gov.uk/doc/local-authority/30UN,Revenues Plus,Postage,4291,Postage April to Sept 2020,08/07/2020,0000457395,442.34,Revenue,CRITIQOM,131053
South Ribble Council,http://statistics.data.gov.uk/doc/local-authority/30UN,Revenues Plus,Postage,4291,Postage April to Sept 2020,22/07/2020,0000457650,399.71,Revenue,CRITIQOM,131053
South Ribble Council,http://statistics.data.gov.uk/doc/local-authority/30UN,Revenues Plus,Postage,4291,Postage April to Sept 2020,29/07/2020,0000457869,333.80,Revenue,CRITIQOM,131053
South Ribble Council,http://statistics.data.gov.uk/doc/local-authority/30UN,Regeneration,Other Misc,4851,Covid Together Hub letters to residents,31/07/2020,0000457928,"1,354.68",Revenue,CRITIQOM,131053
South Ribble Council,http://statistics.data.gov.uk/doc/local-authority/30UN,Regeneration,Other Misc,4851,Covid Together Hub letters to residents,31/07/2020,0000457929,723.99,Revenue,CRITIQOM,131053
South Ribble Council,http://statistics.data.gov.uk/doc/local-authority/30UN,Housing,Cap Grant- Improve Grants,C570,DFG WORKS TO BATHROOM AT ADDRESS REDACTED AS PER QUOTE SUPPLIED OF 3780.00 CUSTOMER CONTRIBUTION OF 1433.40,24/07/2020,0000457773,"2,346.60",Revenue,Croston Plumbing & Heating Ltd,131545
South Ribble Council,http://statistics.data.gov.uk/doc/local-authority/30UN,Legal,Legal,4821,PROFESSIONAL SERVICES  REGARDING AN EMPLOYMENT MATTER,08/07/2020,0000457454,"2,482.00",Revenue,DAC BEACHCROFT LLP,131193
South Ribble Council,http://statistics.data.gov.uk/doc/local-authority/30UN,Legal,Legal,4821,PROFESSIONAL SERVICES  REGARDING AN EMPLOYMENT MATTER,24/07/2020,0000457688,"1,710.00",Revenue,DAC BEACHCROFT LLP,131193
South Ribble Council,http://statistics.data.gov.uk/doc/local-authority/30UN,Legal,Legal,4821,PROFESSIONAL SERVICES  REGARDING AN EMPLOYMENT MATTER,24/07/2020,0000457714,"1,015.50",Revenue,DAC BEACHCROFT LLP,131193
South Ribble Council,http://statistics.data.gov.uk/doc/local-authority/30UN,Area 3 - Parks/Leyland East West,Grounds Maint Cntrctrs Chgs,4657,64LM of repairs to the edges of the rubber surfacing of the toddler playground at Moss Side PF.,31/07/2020,0000457358,"3,520.00",Revenue,DCM Projects Ltd,132610
South Ribble Council,http://statistics.data.gov.uk/doc/local-authority/30UN,Area 2 - Waste Transport/Eastern & Central Teams,Materials General,4040,1 bevel box 1 door trim VU60 HLE JFC14738,29/07/2020,0000456842,255.13,Revenue,DENNIS EAGLE LTD,00019774
South Ribble Council,http://statistics.data.gov.uk/doc/local-authority/30UN,Area 2 - Waste Transport/Eastern & Central Teams,Materials General,4040,carriage place ram VO65KRF JFC14780,24/07/2020,0000456980,665.91,Revenue,DENNIS EAGLE LTD,00019774
South Ribble Council,http://statistics.data.gov.uk/doc/local-authority/30UN,Area 2 - Waste Transport/Eastern & Central Teams,Materials General,4040,"2x sweep cylinders, 8x bushes, 2x pins, 1x hopper floor, 4 hopper blocks, 6x ejector blocks, 2x ejector blocks, VO65 KRD, (NAME REDACTED)",29/07/2020,0000457083,"3,066.15",Revenue,DENNIS EAGLE LTD,00019774
South Ribble Council,http://statistics.data.gov.uk/doc/local-authority/30UN,Area 2 - Waste Transport/Eastern & Central Teams,Materials General,4040,1 water pump and gaskets VO65 KRD JFC14801,01/07/2020,0000457122,471.84,Revenue,DENNIS EAGLE LTD,00019774
South Ribble Council,http://statistics.data.gov.uk/doc/local-authority/30UN,Area 2 - Waste Transport/Eastern & Central Teams,Materials General,4040,"2x slide blocks, VK09 AHJ, JFC14748 (NAME REDACTED)",01/07/2020,0000457172,741.63,Revenue,DENNIS EAGLE LTD,00019774
South Ribble Council,http://statistics.data.gov.uk/doc/local-authority/30UN,Area 2 - Waste Transport/Eastern & Central Teams,Materials General,4040,1 x alternator belt 1 x belt tensioner 1 x belt idler VU60HLE JFC14680,15/07/2020,0000457309,445.53,Revenue,DENNIS EAGLE LTD,00019774
South Ribble Council,http://statistics.data.gov.uk/doc/local-authority/30UN,Area 2 - Waste Transport/Eastern & Central Teams,Materials General,4040,1 electric window regulator VU60 HLE JFC14680,08/07/2020,0000457323,276.44,Revenue,DENNIS EAGLE LTD,00019774
South Ribble Council,http://statistics.data.gov.uk/doc/local-authority/30UN,Area 2 - Waste Transport/Eastern & Central Teams,Materials General,4040,1 tie rod & 4 tie rod collars VU11 HSZ JFC14859,10/07/2020,0000457359,406.12,Revenue,DENNIS EAGLE LTD,00019774
South Ribble Council,http://statistics.data.gov.uk/doc/local-authority/30UN,Area 2 - Waste Transport/Eastern & Central Teams,Materials General,4040,1 track rod end VU11 HSZ JFC14859,10/07/2020,0000457413,309.11,Revenue,DENNIS EAGLE LTD,00019774
South Ribble Council,http://statistics.data.gov.uk/doc/local-authority/30UN,Area 2 - Waste Transport/Eastern & Central Teams,Cap Vehicles,C440,Supply & delivery of 1 RCV as per quote dated 30 Sept 2019 for lot 4 only.,29/07/2020,0000457519,"181,861.00",Revenue,DENNIS EAGLE LTD,00019774
South Ribble Council,http://statistics.data.gov.uk/doc/local-authority/30UN,Area 2 - Waste Transport/Eastern & Central Teams,Materials General,4040,1 x radio kit VK20NVV JFC14985,24/07/2020,0000457663,373.28,Revenue,DENNIS EAGLE LTD,00019774
South Ribble Council,http://statistics.data.gov.uk/doc/local-authority/30UN,Area 2 - Waste Transport/Eastern & Central Teams,Materials General,4040,"1x oil separator housing and breather pipe, VO65KPX, JFC14988 (NAME REDACTED)",24/07/2020,0000457669,329.42,Revenue,DENNIS EAGLE LTD,00019774
South Ribble Council,http://statistics.data.gov.uk/doc/local-authority/30UN,Area 2 - Waste Transport/Eastern & Central Teams,Materials General,4040,"1 x hydraulic pump, 1 x hydraulic filter set, 2 x Oil Hoses, 1 x Gasket, 1 x Support Bracket, VO65KRF, JFC15022",29/07/2020,0000457797,"3,744.01",Revenue,DENNIS EAGLE LTD,00019774
South Ribble Council,http://statistics.data.gov.uk/doc/local-authority/30UN,Property Services,Rep & Maint Premises,2020,works - as per invoice date 13th Feb 2020 at MSD - EL622 repair sounder fault on the fire alarm. Return visit 14th Feb - fault in AVA workshop,17/07/2020,0000457638,278.60,Revenue,DES Electrical Services Ltd,131437
South Ribble Council,http://statistics.data.gov.uk/doc/local-authority/30UN,Property Services,Rep & Maint Premises,2020,"To conduct a detailed lighting design plan, provide materials list and lux level.   Total Cost - 250.00 + VAT As requested by NAME REDACTED",24/07/2020,0000457715,250.00,Revenue,DES Electrical Services Ltd,131437
South Ribble Council,http://statistics.data.gov.uk/doc/local-authority/30UN,Property Services,Rep & Maint Premises,2020,Please install emergency lighting to the roof area of the Civic Centre as per your reference FM/6051/MB/ER,24/07/2020,0000457749,748.00,Revenue,DES Electrical Services Ltd,131437
South Ribble Council,http://statistics.data.gov.uk/doc/local-authority/30UN,Property Services,Rep & Maint Premises,2020,Please Install 2 x new weatherproof sounder beacons to the roof area at the Civic Centre as per your reference  FM/6052/MB/ER,24/07/2020,0000457750,675.00,Revenue,DES Electrical Services Ltd,131437
South Ribble Council,http://statistics.data.gov.uk/doc/local-authority/30UN,Area 3 - Parks/Leyland East West,Materials General,4040,3x LYP042AA01 Large Caritool 2019 Harness Tool Holder,01/07/2020,0000457160,34.80,Revenue,DICK LEIGH,00026534
South Ribble Council,http://statistics.data.gov.uk/doc/local-authority/30UN,Area 3 - Parks/Leyland East West,Materials General,4040,1x LYD022AA00 - Petzl Zig Zag 2019 Grey 11.5mm - 13mm Rope,01/07/2020,0000457160,135.58,Revenue,DICK LEIGH,00026534
South Ribble Council,http://statistics.data.gov.uk/doc/local-authority/30UN,Area 3 - Parks/Leyland East West,Materials General,4040,3x TSA327 Ultra O oval keylock 3 way alloy keylock,01/07/2020,0000457160,50.97,Revenue,DICK LEIGH,00026534
South Ribble Council,http://statistics.data.gov.uk/doc/local-authority/30UN,Area 3 - Parks/Leyland East West,Materials General,4040,1x LYL052FA01 3mtr Replacement Rope 2018 Grillon,01/07/2020,0000457160,38.50,Revenue,DICK LEIGH,00026534
South Ribble Council,http://statistics.data.gov.uk/doc/local-authority/30UN,Area 3 - Parks/Leyland East West,Materials General,4040,1x LYLSL25.080 25mm Nylon sling 80cm,01/07/2020,0000457160,8.92,Revenue,DICK LEIGH,00026534
South Ribble Council,http://statistics.data.gov.uk/doc/local-authority/30UN,Area 3 - Parks/Leyland East West,Materials General,4040,1x LYLSL25.150 25mm Nylon Sling 150cm,01/07/2020,0000457160,5.96,Revenue,DICK LEIGH,00026534
South Ribble Council,http://statistics.data.gov.uk/doc/local-authority/30UN,Area 3 - Parks/Leyland East West,Materials General,4040,2x TS96E Weaver Bungee Tool Strop 1.3m,01/07/2020,0000457160,25.00,Revenue,DICK LEIGH,00026534
South Ribble Council,http://statistics.data.gov.uk/doc/local-authority/30UN,Area 3 - Parks/Leyland East West,Materials General,4040,1x TSREE002 - Reecoil Big Boss Lanyard,01/07/2020,0000457160,50.00,Revenue,DICK LEIGH,00026534
South Ribble Council,http://statistics.data.gov.uk/doc/local-authority/30UN,Area 3 - Parks/Leyland East West,Materials General,4040,1x TSPFA001 - Pfanner Protos Arborist Integral Hemet,01/07/2020,0000457160,199.00,Revenue,DICK LEIGH,00026534
South Ribble Council,http://statistics.data.gov.uk/doc/local-authority/30UN,Information Services,Peripherals,4248,"Standard Support for FME and FME for Oracle Fixed Maintenance for period 30/09/20 - 29/09/21, as per quote",29/07/2020,0000457861,"1,410.00",Revenue,Dotted Eyes Ltd,131106
South Ribble Council,http://statistics.data.gov.uk/doc/local-authority/30UN,Information Services,Peripherals,4260,01 JUL 2020,10/07/2020,0000457451,"4,564.83",Revenue,EE Ltd,131653
South Ribble Council,http://statistics.data.gov.uk/doc/local-authority/30UN,Area 3 - Parks/Leyland East West,Operational Furniture & Equip,4010,1 x Dragmat 3` (2384),24/07/2020,0000457538,237.45,Revenue,Endura Group Ltd t/a Landscaoe SupplyCompany,132600
South Ribble Council,http://statistics.data.gov.uk/doc/local-authority/30UN,Area 3 - Parks/Leyland East West,Operational Furniture & Equip,4010,1 x Levelawn (2388),24/07/2020,0000457538,116.80,Revenue,Endura Group Ltd t/a Landscaoe SupplyCompany,132600
South Ribble Council,http://statistics.data.gov.uk/doc/local-authority/30UN,Area 2 - Waste Transport/Eastern & Central Teams,Contract Hire & Lease Costs,3212,Continued hire of 70/30 RCV - VN12KYA 6 weeks @ 700.00,24/07/2020,0000457223,700.00,Revenue,Euro Municipals Ltd,132810
South Ribble Council,http://statistics.data.gov.uk/doc/local-authority/30UN,Area 2 - Waste Transport/Eastern & Central Teams,Contract Hire & Lease Costs,3212,Continued hire of 70/30 RCV - VN12KYA 6 weeks @ 700.00,24/07/2020,0000457224,700.00,Revenue,Euro Municipals Ltd,132810
South Ribble Council,http://statistics.data.gov.uk/doc/local-authority/30UN,Area 2 - Waste Transport/Eastern & Central Teams,Materials General,4040,Second hand stub axle VU58 JXK JFC14869,24/07/2020,0000457405,425.00,Revenue,Euro Municipals Ltd,132810
South Ribble Council,http://statistics.data.gov.uk/doc/local-authority/30UN,Area 2 - Waste Transport/Eastern & Central Teams,Contract Hire & Lease Costs,3212,Continued hire of 70/30 RCV - VN12KYA 6 weeks @ 700.00,24/07/2020,0000457414,"1,120.00",Revenue,Euro Municipals Ltd,132810
South Ribble Council,http://statistics.data.gov.uk/doc/local-authority/30UN,Area 2 - Waste Transport/Eastern & Central Teams,Materials General,4040,PACKER PLATE + RAMS - PO13UUM - JFC15008,29/07/2020,0000457788,"1,500.00",Revenue,Euro Municipals Ltd,132810
South Ribble Council,http://statistics.data.gov.uk/doc/local-authority/30UN,Area 2 - Waste Transport/Eastern & Central Teams,Materials General,4040,1 HYDRAULIC OIL TANK PO16 HMU JFC14619,03/07/2020,0000456727,474.53,Revenue,F R SHARROCK LTD,00034539
South Ribble Council,http://statistics.data.gov.uk/doc/local-authority/30UN,Area 2 - Waste Transport/Eastern & Central Teams,Materials General,4040,1 X plastic hydraulic tank PO16HMU JFC14619,29/07/2020,0000457425,474.53,Revenue,F R SHARROCK LTD,00034539
South Ribble Council,http://statistics.data.gov.uk/doc/local-authority/30UN,Area 3 - Parks/Leyland East West,Cap Vehicles,C440,Ferris FW35 Walk Behind Flail Mower 26ho Kawasaki Twin petrol engine 48`` Cutting Width Single cleated tyre Mulching Blade,29/07/2020,0000457629,"14,990.00",Revenue,F R SHARROCK LTD,00034539
South Ribble Council,http://statistics.data.gov.uk/doc/local-authority/30UN,Area 2 - Waste Transport/Eastern & Central Teams,External Contractors Charges,4570,Residual Waste Collections June 2020,15/07/2020,0000457495,"44,188.02",Revenue,FCC Environment Services (UK) Ltd,131612
South Ribble Council,http://statistics.data.gov.uk/doc/local-authority/30UN,Area 2 - Waste Transport/Eastern & Central Teams,External Contractors Charges,4570,Dry recyclable non-terraced June 2020,15/07/2020,0000457495,"45,238.56",Revenue,FCC Environment Services (UK) Ltd,131612
South Ribble Council,http://statistics.data.gov.uk/doc/local-authority/30UN,Area 2 - Waste Transport/Eastern & Central Teams,External Contractors Charges,4570,Dry recyclable terraced - June 2020,15/07/2020,0000457495,"2,152.65",Revenue,FCC Environment Services (UK) Ltd,131612
South Ribble Council,http://statistics.data.gov.uk/doc/local-authority/30UN,Area 2 - Waste Transport/Eastern & Central Teams,External Contractors Charges,4570,Organic waste (non-terraced) June 2020,15/07/2020,0000457495,"31,326.88",Revenue,FCC Environment Services (UK) Ltd,131612
South Ribble Council,http://statistics.data.gov.uk/doc/local-authority/30UN,Area 2 - Waste Transport/Eastern & Central Teams,External Contractors Charges,4570,Schedule 2 properties June 2020,15/07/2020,0000457495,"1,800.34",Revenue,FCC Environment Services (UK) Ltd,131612
South Ribble Council,http://statistics.data.gov.uk/doc/local-authority/30UN,Area 2 - Waste Transport/Eastern & Central Teams,External Contractors Charges,4570,Commercial Waste collections June 2020,15/07/2020,0000457495,"7,016.08",Revenue,FCC Environment Services (UK) Ltd,131612
South Ribble Council,http://statistics.data.gov.uk/doc/local-authority/30UN,Area 2 - Waste Transport/Eastern & Central Teams,External Contractors Charges,4570,Bulky waste collections June 2020,15/07/2020,0000457495,973.14,Revenue,FCC Environment Services (UK) Ltd,131612
South Ribble Council,http://statistics.data.gov.uk/doc/local-authority/30UN,Area 2 - Waste Transport/Eastern & Central Teams,External Contractors Charges,4570,WEEE collections June 2020,15/07/2020,0000457495,365.30,Revenue,FCC Environment Services (UK) Ltd,131612
South Ribble Council,http://statistics.data.gov.uk/doc/local-authority/30UN,Area 2 - Waste Transport/Eastern & Central Teams,External Contractors Charges,4570,Clinical Waste Collections June 2020,15/07/2020,0000457495,622.30,Revenue,FCC Environment Services (UK) Ltd,131612
South Ribble Council,http://statistics.data.gov.uk/doc/local-authority/30UN,Area 2 - Waste Transport/Eastern & Central Teams,External Contractors Charges,4570,Replacement Bins June 2020,15/07/2020,0000457495,"5,000.00",Revenue,FCC Environment Services (UK) Ltd,131612
South Ribble Council,http://statistics.data.gov.uk/doc/local-authority/30UN,Area 2 - Waste Transport/Eastern & Central Teams,External Contractors Charges,4570,Additional properties June 2020,15/07/2020,0000457495,"2,846.81",Revenue,FCC Environment Services (UK) Ltd,131612
South Ribble Council,http://statistics.data.gov.uk/doc/local-authority/30UN,Area 2 - Waste Transport/Eastern & Central Teams,Balance Sheet,0030,retention ref,15/07/2020,0000457495,"-2,890.60",Revenue,FCC Environment Services (UK) Ltd,131612
South Ribble Council,http://statistics.data.gov.uk/doc/local-authority/30UN,Area 2 - Waste Transport/Eastern & Central Teams,Balance Sheet,0030,retention recy,15/07/2020,0000457495,"-3,935.90",Revenue,FCC Environment Services (UK) Ltd,131612
South Ribble Council,http://statistics.data.gov.uk/doc/local-authority/30UN,Area 2 - Waste Transport/Eastern & Central Teams,External Contractors Charges,4570,Additional WEEE collections JUNE 2020,10/07/2020,0000457496,839.86,Revenue,FCC Environment Services (UK) Ltd,131612
South Ribble Council,http://statistics.data.gov.uk/doc/local-authority/30UN,Area 2 - Waste Transport/Eastern & Central Teams,External Contractors Charges,4570,Additional bulky waste collections JUNE 2020,10/07/2020,0000457496,"1,497.32",Revenue,FCC Environment Services (UK) Ltd,131612
South Ribble Council,http://statistics.data.gov.uk/doc/local-authority/30UN,Area 2 - Waste Transport/Eastern & Central Teams,Balance Sheet,0030,retention,10/07/2020,0000457496,-116.59,Revenue,FCC Environment Services (UK) Ltd,131612
South Ribble Council,http://statistics.data.gov.uk/doc/local-authority/30UN,Healthy Communities,Consultancy Fees,4541,Leisure Management contract consultancy work May 2020 fees as per proposal and as per NAME REDACTED,03/07/2020,0000457187,"5,500.00",Revenue,FMG Consulting Ltd,133044
South Ribble Council,http://statistics.data.gov.uk/doc/local-authority/30UN,Healthy Communities,Consultancy Fees,4541,Please provide Leisure Management contract consultancy work June 2020 fees as per proposal. As requested by NAME REDACTED,24/07/2020,0000457676,"4,500.00",Revenue,FMG Consulting Ltd,133044
South Ribble Council,http://statistics.data.gov.uk/doc/local-authority/30UN,Planning,Operational Furniture & Equip,4010,"Paper for large plotter printers - 5 rolls 841mm x 110m 21.95 per roll, 8 rolls 594mm x 110m 18.95 per roll. Delivery at 7.95",10/07/2020,0000457306,269.30,Revenue,GCS UK ASSOCIATES LTD,130671
South Ribble Council,http://statistics.data.gov.uk/doc/local-authority/30UN,Legal,Legal,4821,PROFESSIONAL SERVICES IN RELATION TO AN INVESTIGATORY MATTER FROM 1 MAY 2020,01/07/2020,0000457237,"4,480.00",Revenue,GELDARDS LLP,133028
South Ribble Council,http://statistics.data.gov.uk/doc/local-authority/30UN,Legal,Legal,4821,PROFESSIONAL SERVICES IN RELATION TO AN INVESTIGATORY MATTER FROM 1 MAY 2020,17/07/2020,0000457687,"3,639.10",Revenue,GELDARDS LLP,133028
South Ribble Council,http://statistics.data.gov.uk/doc/local-authority/30UN,Neighbourhood Admin & Support,Materials General,4040,"SPEED ROUNDEL RED, WHITE & BLACK 2500mm x 1500mm (5)",03/07/2020,0000457236,135.00,Revenue,Grassmats Ltd t/a Thermmark,132892
South Ribble Council,http://statistics.data.gov.uk/doc/local-authority/30UN,Neighbourhood Admin & Support,Materials General,4040,2 x LINE 100mm YELLOW,03/07/2020,0000457236,112.20,Revenue,Grassmats Ltd t/a Thermmark,132892
South Ribble Council,http://statistics.data.gov.uk/doc/local-authority/30UN,Neighbourhood Admin & Support,Materials General,4040,1 x LINE 100mm WHITE,03/07/2020,0000457236,50.40,Revenue,Grassmats Ltd t/a Thermmark,132892
South Ribble Council,http://statistics.data.gov.uk/doc/local-authority/30UN,Neighbourhood Admin & Support,Materials General,4040,2 x PRIMER 5kg,03/07/2020,0000457236,50.00,Revenue,Grassmats Ltd t/a Thermmark,132892
South Ribble Council,http://statistics.data.gov.uk/doc/local-authority/30UN,Neighbourhood Admin & Support,Materials General,4040,FREIGHT,03/07/2020,0000457236,40.00,Revenue,Grassmats Ltd t/a Thermmark,132892
South Ribble Council,http://statistics.data.gov.uk/doc/local-authority/30UN,Housing,Cap Grant- Improve Grants,C570,DFG WORKS AS PER SRBC SPEC AT ADDRESS REDACTED QUOTE 20580.00 TOTAL GRANT PAYABLE 20580.00,03/07/2020,0000457361,"11,270.00",Revenue,Greenside Design and Build,132944
South Ribble Council,http://statistics.data.gov.uk/doc/local-authority/30UN,Area 2 - Waste Transport/Eastern & Central Teams,Materials General,4040,Filters for stores,24/07/2020,0000457530,676.09,Revenue,H & J SERVICES LTD,00114446
South Ribble Council,http://statistics.data.gov.uk/doc/local-authority/30UN,Area 2 - Waste Transport/Eastern & Central Teams,Materials General,4040,Filters for Stores,24/07/2020,0000457709,426.79,Revenue,H & J SERVICES LTD,00114446
South Ribble Council,http://statistics.data.gov.uk/doc/local-authority/30UN,Homelessness,Other Misc,4851,COVID19 placement NAMES REDACTED Family room at 90/night Fri 22.5.2020 - Mon 25.5.2020 - leaving 26.5.20 =4 nights,15/07/2020,0000457541,360.00,Revenue,HILL VIEW (PRIVATE HOTEL),00099147
South Ribble Council,http://statistics.data.gov.uk/doc/local-authority/30UN,Homelessness,Other Misc,4851,cont COVID 19 placement - alternate room 80/n 26/5 - 1/6/20 = 7 nights NAMES REDACTED left HVH 2.7.20 to Whitburn House Hotel,15/07/2020,0000457542,560.00,Revenue,HILL VIEW (PRIVATE HOTEL),00099147
South Ribble Council,http://statistics.data.gov.uk/doc/local-authority/30UN,Homelessness,Contractors Charges 5,5311,NAME REDACTED final invoice for placement 19-26.3.20208 nights at 55/night,15/07/2020,0000457543,440.00,Revenue,HILL VIEW (PRIVATE HOTEL),00099147
South Ribble Council,http://statistics.data.gov.uk/doc/local-authority/30UN,Homelessness,Contractors Charges 5,5311,NAME REDACTED - 4.12.2019 to 20.12.2019 @ 55 pn,24/07/2020,0000457752,880.00,Revenue,HILL VIEW (PRIVATE HOTEL),00099147
South Ribble Council,http://statistics.data.gov.uk/doc/local-authority/30UN,Property Services,Rep & Maint Premises,2020,"Please carry out works at Civic Centre - Painting, decorating, and re-carpeting as per NAME REDACTED as per the tender",17/07/2020,0000457225,"7,086.40",Revenue,Holden Building Solutions Limited,132607
South Ribble Council,http://statistics.data.gov.uk/doc/local-authority/30UN,Property Services,Rep & Maint Premises,2020,materials,17/07/2020,0000457225,"1,914.60",Revenue,Holden Building Solutions Limited,132607
South Ribble Council,http://statistics.data.gov.uk/doc/local-authority/30UN,Information Services,Peripherals,4248,Building Inspections App Maintenance 14/07/20 - 31/03/21,03/07/2020,0000457226,470.16,Revenue,IDOX PLC,00104485
South Ribble Council,http://statistics.data.gov.uk/doc/local-authority/30UN,Environmental Health,Other Misc,4851,2nd part of Idox Not paid on PUR0043490,31/07/2020,0000457593,"1,050.00",Revenue,IDOX PLC,00104485
South Ribble Council,http://statistics.data.gov.uk/doc/local-authority/30UN,Information Services,Peripherals,4248,Commercial Premises App Annual Maintenance for period 31/08/20 - 31/03/21,29/07/2020,0000457855,383.69,Revenue,IDOX PLC,00104485
South Ribble Council,http://statistics.data.gov.uk/doc/local-authority/30UN,Democratic Services,Other Misc,4970,NAME REDACTED TO ATTEND `CANVASS REFORM TRAINING` DATE TBC,31/07/2020,0000457866,325.00,Revenue,IDOX PLC,00104485
South Ribble Council,http://statistics.data.gov.uk/doc/local-authority/30UN,Information Services,Peripherals,4247,"NetCrunch subscription renewal, maintenance & support 25/05/20 - 24/05.21, as per quote",08/07/2020,0000457253,631.25,Revenue,INSIGHT UK,00120744
South Ribble Council,http://statistics.data.gov.uk/doc/local-authority/30UN,Neighbourhood Admin & Support,Materials General,4040,QC10 - QUICK SET CONCRETE,22/07/2020,0000457725,"1,228.64",Revenue,INSTARMAC GROUP PLC,00024905
South Ribble Council,http://statistics.data.gov.uk/doc/local-authority/30UN,Property Services,Rep & Maint Premises,2020,"Replacement waste, traps and tap tails on 2 sinks Supply/Installation of battery powered infared cistern flush on urinals ADDRESS REDACTED",31/07/2020,0000457844,290.00,Revenue,J Whittle plumbing & heating,132695
South Ribble Council,http://statistics.data.gov.uk/doc/local-authority/30UN,Property Services,Rep & Maint Premises,2020,Please carry out work as per EA 5135 air conditioning atADDRESS REDACTED as per NAME REDACTED instruction,10/07/2020,0000457415,"2,482.00",Revenue,JAMES MERCER GROUP LTD,00028587
South Ribble Council,http://statistics.data.gov.uk/doc/local-authority/30UN,Property Services,Rep & Maint Premises,2020,"Works as per quotation for air conditioning at Units 17B and 18F Boxer Place, Moss Side Industrial Estate, Leyland as per NAME REDACTED instruction",17/07/2020,0000457416,"8,532.00",Revenue,JAMES MERCER GROUP LTD,00028587
South Ribble Council,http://statistics.data.gov.uk/doc/local-authority/30UN,Property Services,Rep & Maint Premises,2020,To repair investigate the reported fault with oil boiler at worden park,29/07/2020,0000457840,255.00,Revenue,JAMES MERCER GROUP LTD,00028587
South Ribble Council,http://statistics.data.gov.uk/doc/local-authority/30UN,Property Services,Licence Fees,4886,"Please carry out  the EPC inspections of - units 15c, 17b,18f Boxer place & 6, 7, 8, Heaton street. Per NAME REDACTED instructions",17/07/2020,0000457528,875.00,Revenue,Jane Needham Ltd,133145
South Ribble Council,http://statistics.data.gov.uk/doc/local-authority/30UN,Planning,Advertising,4841,Press Notices in the Lancashire Evening Post for planning applications April 2020 to March 2021,29/07/2020,0000457546,729.00,Revenue,JPI Media - JOHNSTON PUBLISHING (NORTH WEST),00011345
South Ribble Council,http://statistics.data.gov.uk/doc/local-authority/30UN,Legal,Advertising,4841,PUBLIC NOTICE REFERENCE NMC6057276  - 14 X 3 - BLACK - 17 JULY 2020,31/07/2020,0000457753,"1,134.00",Revenue,JPI Media - JOHNSTON PUBLISHING (NORTH WEST),00011345
South Ribble Council,http://statistics.data.gov.uk/doc/local-authority/30UN,Area 1 - Penwortham Western Parishes,External Contractors Charges,4570,Provide high speed lane closures as per chapter 8 & to provide Traffic Management for the operation. 8-night operation - MAY 2020,24/07/2020,0000456809,"5,800.00",Revenue,KAYS TRAFFIC MANAGEMENT LTD,00072342
South Ribble Council,http://statistics.data.gov.uk/doc/local-authority/30UN,Area 3 - Parks/Leyland East West,External Contractors Charges,4570,"Provide all Traffic Management and carry out all grass cutting to Longton , Samlesbury  and end of M65/ Lostock Lane as per supplied maps",31/07/2020,0000457547,"3,650.00",Revenue,KAYS TRAFFIC MANAGEMENT LTD,00072342
South Ribble Council,http://statistics.data.gov.uk/doc/local-authority/30UN,Neighbourhood Admin & Support,Materials General,4046,"1 Off Buzz  About Bees Carpet Bed. For delivery 15th - 19th June, please deliver before 2pm",24/07/2020,0000457124,"2,580.00",Revenue,KERNOCK PARK PLANTS,00081304
South Ribble Council,http://statistics.data.gov.uk/doc/local-authority/30UN,Area 1 - Penwortham Western Parishes,Operational Furniture & Equip,4010,12 x 1 Litre White/Grey Bulk fill Soap Dispenser (ARMBULKDISP) @ 18.20,03/07/2020,0000457263,218.04,Revenue,KEY ENGINEERING & HYGIENE SUPPLIES LTD,00083658
South Ribble Council,http://statistics.data.gov.uk/doc/local-authority/30UN,Area 1 - Penwortham Western Parishes,Materials General,4040,6 x Handsan Alcohol Hand Sanitiser 5 litre (HANDSAN/5LTR) @ 40.00,03/07/2020,0000457263,240.00,Revenue,KEY ENGINEERING & HYGIENE SUPPLIES LTD,00083658
South Ribble Council,http://statistics.data.gov.uk/doc/local-authority/30UN,Regeneration,Other Misc,4851,Food and Toiletries as part of Coronavirus Action Plan,29/07/2020,0000457754,968.61,Revenue,Khanjra International Foods Ltd,133076
South Ribble Council,http://statistics.data.gov.uk/doc/local-authority/30UN,Property Services,Other Misc,4851,72 MISC 600ml Hand Sanitiser  11.90 = 856.80   QUO346529 as per quote,10/07/2020,0000457436,856.80,Revenue,Kingswood Office Supplies,133083
South Ribble Council,http://statistics.data.gov.uk/doc/local-authority/30UN,Property Services,Other Misc,4851,100 MISC Covid Desk Screens  1.69 = 169.00 as per quote QUO346530,10/07/2020,0000457436,169.00,Revenue,Kingswood Office Supplies,133083
South Ribble Council,http://statistics.data.gov.uk/doc/local-authority/30UN,Area 2 - Waste Transport/Eastern & Central Teams,Operational Furniture & Equip,4010,1 x Block & Tackle CB2000,01/07/2020,0000457241,171.04,Revenue,lancashire Bus and Truck Parts Limited,132511
South Ribble Council,http://statistics.data.gov.uk/doc/local-authority/30UN,Area 2 - Waste Transport/Eastern & Central Teams,Operational Furniture & Equip,4010,1 x Beam Clamp BC2000,01/07/2020,0000457241,67.29,Revenue,lancashire Bus and Truck Parts Limited,132511
South Ribble Council,http://statistics.data.gov.uk/doc/local-authority/30UN,Area 2 - Waste Transport/Eastern & Central Teams,Materials General,4040,1 X Oil Drum Clamp DG02 FLT01 - JFC14816,01/07/2020,0000457241,320.24,Revenue,lancashire Bus and Truck Parts Limited,132511
South Ribble Council,http://statistics.data.gov.uk/doc/local-authority/30UN,Area 2 - Waste Transport/Eastern & Central Teams,Materials General,4040,3000 litres Bulk Adblue @ 0.22ppl,24/07/2020,0000457158,659.78,Revenue,LANCASHIRE OILS LTD,131167
South Ribble Council,http://statistics.data.gov.uk/doc/local-authority/30UN,Area 1 - Penwortham Western Parishes,External Contractors Charges,4570,Estimated Maintenance & Energy Cost for the Amenity Lighting 2020/21,03/07/2020,0000457319,"4,280.10",Revenue,LANCS COUNTY COUNCIL,00050681
South Ribble Council,http://statistics.data.gov.uk/doc/local-authority/30UN,Area 1 - Penwortham Western Parishes,Grounds Maintanance,2040,Estimated Maintenance & Energy Cost of the Car Park Lighting 2020/21,03/07/2020,0000457319,"8,686.36",Revenue,LANCS COUNTY COUNCIL,00050681
South Ribble Council,http://statistics.data.gov.uk/doc/local-authority/30UN,Area 1 - Penwortham Western Parishes,Rep & Maint Premises,2020,Estimated Maintenance & Energy Cost of the Public Building Lighting 2020/21,03/07/2020,0000457319,"10,039.30",Revenue,LANCS COUNTY COUNCIL,00050681
South Ribble Council,http://statistics.data.gov.uk/doc/local-authority/30UN,Housing,Cap Grant- Improve Grants,C570,DFG WORKS TO SUPPLY AND INSTALL A STAIRLIFT AT ADDRESS REDACTED AS PER QUOTE SUPPLIED OF 7737.00 TOTAL 7737.00,03/07/2020,0000457363,"8,149.00",Revenue,LANCS COUNTY COUNCIL,00041645
South Ribble Council,http://statistics.data.gov.uk/doc/local-authority/30UN,Legal,Other Local Authorities,4530,LAND CHARGES - JUNE 2020,17/07/2020,0000457686,910.50,Revenue,LANCS COUNTY COUNCIL,00041645
South Ribble Council,http://statistics.data.gov.uk/doc/local-authority/30UN,Information Services,Peripherals,4248,Annual charges - GIS Services Contract for period 01/04/20 - 31/03/21,24/07/2020,0000457774,"7,142.43",Revenue,LANCS COUNTY COUNCIL,00041645
South Ribble Council,http://statistics.data.gov.uk/doc/local-authority/30UN,Area 2 - Waste Transport/Eastern & Central Teams,Materials General,4040,MOT FEES YD19 ATY JFC14246,03/07/2020,0000457264,162.00,Revenue,LANCS DAF,00026424
South Ribble Council,http://statistics.data.gov.uk/doc/local-authority/30UN,Area 2 - Waste Transport/Eastern & Central Teams,Materials General,4040,fees,03/07/2020,0000457264,90.00,Revenue,LANCS DAF,00026424
South Ribble Council,http://statistics.data.gov.uk/doc/local-authority/30UN,Property Services,Professional Fees,4510,Work: Volunteer management at Preston Junction Local Nature Reserve Amount: 6000 as per NAME REDACTED,31/07/2020,0000457835,"1,250.00",Revenue,LANCS WILDLIFE TRUST,00027009
South Ribble Council,http://statistics.data.gov.uk/doc/local-authority/30UN,Shared Financial Services,Salaries- Car Allowances,1131,VIN REDACTED,24/07/2020,0000457626,926.83,Revenue,LeasePlan UK Ltd T/A Automotive Leasing,133131
South Ribble Council,http://statistics.data.gov.uk/doc/local-authority/30UN,Shared Financial Services,Salaries- Car Allowances,1131,VIN REDACTED,24/07/2020,0000457626,"3,270.73",Revenue,LeasePlan UK Ltd T/A Automotive Leasing,133131
South Ribble Council,http://statistics.data.gov.uk/doc/local-authority/30UN,Shared Financial Services,Salaries- Car Allowances,1131,VIN REDACTED,24/07/2020,0000457626,"1,852.56",Revenue,LeasePlan UK Ltd T/A Automotive Leasing,133131
South Ribble Council,http://statistics.data.gov.uk/doc/local-authority/30UN,Shared Financial Services,Salaries- Car Allowances,1131,VIN REDACTED,24/07/2020,0000457626,926.97,Revenue,LeasePlan UK Ltd T/A Automotive Leasing,133131
South Ribble Council,http://statistics.data.gov.uk/doc/local-authority/30UN,HR & Communications,Other Misc,4851,154 X DRIVER MANAGEMENT FEE @ 4.80 = 739.20 88 x DVLA ELECTRONIC FEE @ 0.88 = 52.80,10/07/2020,0000457330,792.00,Revenue,LICENCE BUREAU LIMITED,131943
South Ribble Council,http://statistics.data.gov.uk/doc/local-authority/30UN,Area 2 - Waste Transport/Eastern & Central Teams,Operational Furniture & Equip,4010,1 Transfer Pump,15/07/2020,0000457499,343.96,Revenue,LIJ Fluid Power Ltd,132748
South Ribble Council,http://statistics.data.gov.uk/doc/local-authority/30UN,Regeneration,Capital Expenditure,C230,To provide services for the Civic Centre Solar project.,10/07/2020,0000457501,"15,675.00",Revenue,Low Carbon Installations Ltd,133023
South Ribble Council,http://statistics.data.gov.uk/doc/local-authority/30UN,Regeneration,Capital Expenditure,C230,Labour,10/07/2020,0000457501,"5,000.00",Revenue,Low Carbon Installations Ltd,133023
South Ribble Council,http://statistics.data.gov.uk/doc/local-authority/30UN,Neighbourhood Admin & Support,Operational Furniture & Equip,4010,PADLOCKS  - SQUIRE 660 TO PASS KEY 10,24/07/2020,0000457125,440.10,Revenue,M A C BUILDING PRODUCTS LTD,00051059
South Ribble Council,http://statistics.data.gov.uk/doc/local-authority/30UN,Area 3 - Parks/Leyland East West,Grounds Maint Cntrctrs Chgs,4657,20 T Grade 1 Top Soil to Worden Park (near Depot) on Wednesday 25th March 2020,10/07/2020,0000457407,460.00,Revenue,M C & M A STEWART HAULAGE LTD,00035567
South Ribble Council,http://statistics.data.gov.uk/doc/local-authority/30UN,Neighbourhood Admin & Support,Materials General,4040,ARUNDEL WAY,10/07/2020,0000457469,120.00,Revenue,Main Street Signs Ltd,131922
South Ribble Council,http://statistics.data.gov.uk/doc/local-authority/30UN,Neighbourhood Admin & Support,Materials General,4040,KING STREET,10/07/2020,0000457469,40.00,Revenue,Main Street Signs Ltd,131922
South Ribble Council,http://statistics.data.gov.uk/doc/local-authority/30UN,Neighbourhood Admin & Support,Materials General,4040,HEATON STREET,10/07/2020,0000457469,84.00,Revenue,Main Street Signs Ltd,131922
South Ribble Council,http://statistics.data.gov.uk/doc/local-authority/30UN,Neighbourhood Admin & Support,Materials General,4040,BROOK LANE,10/07/2020,0000457469,39.00,Revenue,Main Street Signs Ltd,131922
South Ribble Council,http://statistics.data.gov.uk/doc/local-authority/30UN,Neighbourhood Admin & Support,Materials General,4040,NURSERY LANE,10/07/2020,0000457469,82.00,Revenue,Main Street Signs Ltd,131922
South Ribble Council,http://statistics.data.gov.uk/doc/local-authority/30UN,Neighbourhood Admin & Support,Materials General,4040,BROADSTONE DRIVE  T,10/07/2020,0000457469,96.00,Revenue,Main Street Signs Ltd,131922
South Ribble Council,http://statistics.data.gov.uk/doc/local-authority/30UN,Neighbourhood Admin & Support,Materials General,4040,ANDERTON CRESCENT,10/07/2020,0000457469,32.00,Revenue,Main Street Signs Ltd,131922
South Ribble Council,http://statistics.data.gov.uk/doc/local-authority/30UN,Neighbourhood Admin & Support,Materials General,4040,NORTHGATE,10/07/2020,0000457469,78.00,Revenue,Main Street Signs Ltd,131922
South Ribble Council,http://statistics.data.gov.uk/doc/local-authority/30UN,Neighbourhood Admin & Support,Materials General,4040,HASTINGS ROAD,10/07/2020,0000457469,84.00,Revenue,Main Street Signs Ltd,131922
South Ribble Council,http://statistics.data.gov.uk/doc/local-authority/30UN,Neighbourhood Admin & Support,Materials General,4040,BEAUMARIS ROAD,10/07/2020,0000457469,129.00,Revenue,Main Street Signs Ltd,131922
South Ribble Council,http://statistics.data.gov.uk/doc/local-authority/30UN,Neighbourhood Admin & Support,Materials General,4040,KNOWSLEY ROAD,10/07/2020,0000457469,84.00,Revenue,Main Street Signs Ltd,131922
South Ribble Council,http://statistics.data.gov.uk/doc/local-authority/30UN,Neighbourhood Admin & Support,Materials General,4040,KILNGATE,10/07/2020,0000457469,38.00,Revenue,Main Street Signs Ltd,131922
South Ribble Council,http://statistics.data.gov.uk/doc/local-authority/30UN,Neighbourhood Admin & Support,Materials General,4040,ALEXANDRA ROAD,10/07/2020,0000457469,86.00,Revenue,Main Street Signs Ltd,131922
South Ribble Council,http://statistics.data.gov.uk/doc/local-authority/30UN,Neighbourhood Admin & Support,Materials General,4040,DELIVERY CHARGE,10/07/2020,0000457469,77.00,Revenue,Main Street Signs Ltd,131922
South Ribble Council,http://statistics.data.gov.uk/doc/local-authority/30UN,Neighbourhood Admin & Support,Materials General,4040,MAYFLOWER AVENUE   T,31/07/2020,0000457834,48.00,Revenue,Main Street Signs Ltd,131922
South Ribble Council,http://statistics.data.gov.uk/doc/local-authority/30UN,Neighbourhood Admin & Support,Materials General,4040,MANBY CLOSE   T,31/07/2020,0000457834,86.00,Revenue,Main Street Signs Ltd,131922
South Ribble Council,http://statistics.data.gov.uk/doc/local-authority/30UN,Neighbourhood Admin & Support,Materials General,4040,METHUEN AVENUE  157 - 175 HOGHTON LANE,31/07/2020,0000457834,122.00,Revenue,Main Street Signs Ltd,131922
South Ribble Council,http://statistics.data.gov.uk/doc/local-authority/30UN,Neighbourhood Admin & Support,Materials General,4040,HOLKER CLOSE  T,31/07/2020,0000457834,88.00,Revenue,Main Street Signs Ltd,131922
South Ribble Council,http://statistics.data.gov.uk/doc/local-authority/30UN,Neighbourhood Admin & Support,Materials General,4040,CLEVELAND ROAD,31/07/2020,0000457834,86.00,Revenue,Main Street Signs Ltd,131922
South Ribble Council,http://statistics.data.gov.uk/doc/local-authority/30UN,Neighbourhood Admin & Support,Materials General,4040,TUER STREET,31/07/2020,0000457834,40.00,Revenue,Main Street Signs Ltd,131922
South Ribble Council,http://statistics.data.gov.uk/doc/local-authority/30UN,Neighbourhood Admin & Support,Materials General,4040,PEMBURY AVENUE,31/07/2020,0000457834,172.00,Revenue,Main Street Signs Ltd,131922
South Ribble Council,http://statistics.data.gov.uk/doc/local-authority/30UN,Neighbourhood Admin & Support,Materials General,4040,DELIVERY CHARGE,31/07/2020,0000457834,42.00,Revenue,Main Street Signs Ltd,131922
South Ribble Council,http://statistics.data.gov.uk/doc/local-authority/30UN,Information Services,Peripherals,4269,"10 x OSCC licenses, config, Project co-ordination and annual support costs, as per quote ref: 0066662",24/07/2020,0000457793,969.00,Revenue,Maintel Europe Ltd,132500
South Ribble Council,http://statistics.data.gov.uk/doc/local-authority/30UN,Property Services,Rep & Maint Premises,2020,"Please undertake a full compliance survey of all fire doors at the Civic,",15/07/2020,0000457548,"1,050.00",Revenue,Manchester Fire Compliance Ltd,133065
South Ribble Council,http://statistics.data.gov.uk/doc/local-authority/30UN,Legal,Legal,4821,R (NAME REDACTED) V SOUTH RIBBLE BOROUGH COUNCIL AND OTHERS - JR PROCEEDINGS,08/07/2020,0000457468,312.50,Revenue,Matthew Henderson,133139
South Ribble Council,http://statistics.data.gov.uk/doc/local-authority/30UN,Area 3 - Parks/Leyland East West,Grounds Maint Cntrctrs Chgs,4657,REMOVE 2 LOAD OF WASTE FROM WORDEN DEPOT.,24/07/2020,0000457196,420.00,Revenue,Michael Alty,132480
South Ribble Council,http://statistics.data.gov.uk/doc/local-authority/30UN,Area 2 - Waste Transport/Eastern & Central Teams,External Contractors Charges,4570,"Vehicle Recovery, VO65 KPY, JFC14732",08/07/2020,0000456900,955.50,Revenue,MILLERS OF LONGTON LTD,00028642
South Ribble Council,http://statistics.data.gov.uk/doc/local-authority/30UN,Area 2 - Waste Transport/Eastern & Central Teams,External Contractors Charges,4570,Recover truck from DAF to Coopers to tip off and return to DAF empty YD19 AUM JFC14775,10/07/2020,0000457106,325.00,Revenue,MILLERS OF LONGTON LTD,00028642
South Ribble Council,http://statistics.data.gov.uk/doc/local-authority/30UN,Area 2 - Waste Transport/Eastern & Central Teams,Operational Furniture & Equip,4010,Supply and fit new ramp seal to 25T Stertil Ramp,03/07/2020,0000457153,235.00,Revenue,MRB Workshop Services Ltd,132635
South Ribble Council,http://statistics.data.gov.uk/doc/local-authority/30UN,Area 2 - Waste Transport/Eastern & Central Teams,Operational Furniture & Equip,4010,Carry out exhaust extraction calibration x 6,03/07/2020,0000457153,95.00,Revenue,MRB Workshop Services Ltd,132635
South Ribble Council,http://statistics.data.gov.uk/doc/local-authority/30UN,Shared Financial Services,Parish Precepts,4870,much hoole prish precept,01/07/2020,0000456889,"36,831.00",Revenue,MUCH HOOLE PARISH COUNCIL,00028383
South Ribble Council,http://statistics.data.gov.uk/doc/local-authority/30UN,Area 2 - Waste Transport/Eastern & Central Teams,Contract Hire & Lease Costs,3212,Hire of RCV VO61 YVE 4.6.20 - 17.6.20,29/07/2020,0000457328,"1,400.00",Revenue,NAYLORS TRANSPORT (LEYLAND) ltd,00114828
South Ribble Council,http://statistics.data.gov.uk/doc/local-authority/30UN,Neighbourhood Admin & Support,Materials General,4040,PLUS FREIGHT NEXT DAY DEL - CHANNEL BRUSH - 2.8 mm POLY & 3.3mm WIRE 5 row 700/1000mm - 78399/2,24/07/2020,0000457100,607.42,Revenue,NORTHERN MUNICIPAL SPARES LTD,00117061
South Ribble Council,http://statistics.data.gov.uk/doc/local-authority/30UN,Neighbourhood Admin & Support,Materials General,4040,SCHMIDT MINI SWEEPER BRUSHES - POLY/WIRE MIX - 71107/1,10/07/2020,0000457256,541.94,Revenue,NORTHERN MUNICIPAL SPARES LTD,00117061
South Ribble Council,http://statistics.data.gov.uk/doc/local-authority/30UN,Neighbourhood Admin & Support,Materials General,4040,CHANNEL BRUSH - 2.8 mm POLY & 3.3mm WIRE 5 row 700/1000mm - 78399/2,31/07/2020,0000457757,375.62,Revenue,NORTHERN MUNICIPAL SPARES LTD,00117061
South Ribble Council,http://statistics.data.gov.uk/doc/local-authority/30UN,Neighbourhood Admin & Support,Materials General,4040,FREIGHT CHARGE,31/07/2020,0000457757,39.00,Revenue,NORTHERN MUNICIPAL SPARES LTD,00117061
South Ribble Council,http://statistics.data.gov.uk/doc/local-authority/30UN,Area 1 - Penwortham Western Parishes,Professional Fees,4514,Deployment of officers June 2020,08/07/2020,0000457385,"1,324.05",Revenue,NSL LTD,00116868
South Ribble Council,http://statistics.data.gov.uk/doc/local-authority/30UN,Area 1 - Penwortham Western Parishes,Other Misc,4855,Cash collection and ringo charges - June 2020,08/07/2020,0000457385,227.09,Revenue,NSL LTD,00116868
South Ribble Council,http://statistics.data.gov.uk/doc/local-authority/30UN,Area 1 - Penwortham Western Parishes,Other Misc,4855,Ringo Convenience charge- June 2020,08/07/2020,0000457385,46.47,Revenue,NSL LTD,00116868
South Ribble Council,http://statistics.data.gov.uk/doc/local-authority/30UN,Information Services,Peripherals,4246,"5 Pre-Purchased Days - Consultancy @ 930.00 per day, as per quote",24/07/2020,0000457777,"4,650.00",Revenue,NVIRON LTD,00028781
South Ribble Council,http://statistics.data.gov.uk/doc/local-authority/30UN,Regeneration,Professional Fees,4520,"Residents Survey for South Ribble, Postal and Online Residents Survey Proposals Nov 2019, attached with Revised Timetable and Data Sharing ",01/07/2020,0000457201,"4,382.00",Revenue,NWA Social and Market Research Ltd,133040
South Ribble Council,http://statistics.data.gov.uk/doc/local-authority/30UN,Revenues Plus,Peripherals,4242,Web calculator,31/07/2020,0000457093,770.00,Revenue,OTECH LTD,00088268
South Ribble Council,http://statistics.data.gov.uk/doc/local-authority/30UN,Property Services,Rep & Maint Premises,2020,Please undertake the works to the conservative group room at the Civic Centre as agreed with facilities management,15/07/2020,0000457490,"4,470.00",Revenue,PDP PROPERTY SERVICES LTD,00106975
South Ribble Council,http://statistics.data.gov.uk/doc/local-authority/30UN,Information Services,Peripherals,4243,5 x Audio Conferencing Shared Server Subscription and 30 x Microsoft 365 E3 Shared Server All Language Subscription Per User - Licence  ,03/07/2020,0000457195,"4,711.20",Revenue,PHOENIX SOFTWARE LTD,00064279
South Ribble Council,http://statistics.data.gov.uk/doc/local-authority/30UN,Property Services,Operational Furniture & Equip,4012,"2020 / 2021 contract for the provision of sanitary services at Moss Side Depot, Bison Place, Leyland",24/07/2020,0000457758,410.88,Revenue,PHS GROUP PLC,00031309
South Ribble Council,http://statistics.data.gov.uk/doc/local-authority/30UN,Property Services,Operational Furniture & Equip,4012,2020 / 2021 contract for the provision of sanitary services at the Civic Centre,24/07/2020,0000457759,982.31,Revenue,PHS GROUP PLC,00031309
South Ribble Council,http://statistics.data.gov.uk/doc/local-authority/30UN,Area 2 - Waste Transport/Eastern & Central Teams,Materials General,4040,1 x 205ltr CS LS 5/30 Engine oil @ 1.29 ppl,01/07/2020,0000457062,256.71,Revenue,PILKINGTON OILS,00113531
South Ribble Council,http://statistics.data.gov.uk/doc/local-authority/30UN,Area 2 - Waste Transport/Eastern & Central Teams,Materials General,4040,1 x 205ltr Antifreeze @ 1.45 ppl,01/07/2020,0000457062,297.25,Revenue,PILKINGTON OILS,00113531
South Ribble Council,http://statistics.data.gov.uk/doc/local-authority/30UN,Planning,Agency Fees,1121,Providing Temporary Planning Enforcement Services,31/07/2020,0000457804,"1,548.50",Revenue,Planning Control & PACE Solutions,133164
South Ribble Council,http://statistics.data.gov.uk/doc/local-authority/30UN,Area 3 - Parks/Leyland East West,Capital Expenditure,C230,to be cancelled with CREDIT,01/07/2020,0000456771,"175,000.00",Revenue,PLAY & LEISURE LTD,00032188
South Ribble Council,http://statistics.data.gov.uk/doc/local-authority/30UN,Area 3 - Parks/Leyland East West,Capital Expenditure,C230,"REFURBISHMENT OF LEADALE GREEN, PLAYGROUND",01/07/2020,0000457115,"169,750.00",Revenue,PLAY & LEISURE LTD,00032188
South Ribble Council,http://statistics.data.gov.uk/doc/local-authority/30UN,Area 3 - Parks/Leyland East West,Grounds Maint Cntrctrs Chgs,4657,60 x Play Area Signs A3 Correx - South Ribble As per your Quotation 14109/1,31/07/2020,0000457624,354.76,Revenue,Poppy Signs Ltd,131670
South Ribble Council,http://statistics.data.gov.uk/doc/local-authority/30UN,Information Services,Peripherals,4241,30 x Jabra EVOLVE 30 II Mono USB Headset With Noise Cancelling Microphone Ref 5393-823-309 @ 58.95 each.,10/07/2020,0000457473,"1,620.00",Revenue,PREMIER OFFICE SUPPLES (UK) LTD,00090159
South Ribble Council,http://statistics.data.gov.uk/doc/local-authority/30UN,Property Services,Other Misc,4851,3PLY  IIRMASK 3 Ply IIR Disposable Face Masks Pk 50  qty  20 @26.99  = 539.80  requested by NAME REDACTED per quote SQUO00115581,24/07/2020,0000457680,539.80,Revenue,PREMIER OFFICE SUPPLES (UK) LTD,00090159
South Ribble Council,http://statistics.data.gov.uk/doc/local-authority/30UN,Information Services,Stationery,4133,"50,000 sheets Evolution EverydayA4 80gm",03/07/2020,0000457373,290.00,Revenue,PREMIER PAPER GROUP LTD,00022606
South Ribble Council,http://statistics.data.gov.uk/doc/local-authority/30UN,Area 2 - Waste Transport/Eastern & Central Teams,Printing,4127,SUPPLY & DELIVERY OF GARDEN WASTE PERMITS AS PER QUOTE 23.8.19 TO COVER JAN TO DEC 2020,10/07/2020,0000457455,"2,214.45",Revenue,Premiserv,132447
South Ribble Council,http://statistics.data.gov.uk/doc/local-authority/30UN,Planning,Professional Fees,4510,Shared printing of the local plan,29/07/2020,0000457438,"3,556.00",Revenue,Preston City Council,131913
South Ribble Council,http://statistics.data.gov.uk/doc/local-authority/30UN,Neighbourhood Admin & Support,External Contractors Charges,4570,Heras Fencing panels 3.5m x 2m complete with 3 clips per panel,03/07/2020,0000457259,739.00,Revenue,Preston Fencing Ltd,131617
South Ribble Council,http://statistics.data.gov.uk/doc/local-authority/30UN,Area 2 - Waste Transport/Eastern & Central Teams,External Contractors Charges,4570,1 x refit chubb lock to workshop door 01.06.2020,08/07/2020,0000457410,35.00,Revenue,PRESTON LOCKS LTD,131222
South Ribble Council,http://statistics.data.gov.uk/doc/local-authority/30UN,Area 2 - Waste Transport/Eastern & Central Teams,External Contractors Charges,4570,1 x key cabinet,08/07/2020,0000457410,340.00,Revenue,PRESTON LOCKS LTD,131222
South Ribble Council,http://statistics.data.gov.uk/doc/local-authority/30UN,Area 2 - Waste Transport/Eastern & Central Teams,External Contractors Charges,4570,1 x Labour to fit,08/07/2020,0000457410,40.00,Revenue,PRESTON LOCKS LTD,131222
South Ribble Council,http://statistics.data.gov.uk/doc/local-authority/30UN,Area 2 - Waste Transport/Eastern & Central Teams,External Contractors Charges,4570,1 x carriage,08/07/2020,0000457410,13.00,Revenue,PRESTON LOCKS LTD,131222
South Ribble Council,http://statistics.data.gov.uk/doc/local-authority/30UN,Area 2 - Waste Transport/Eastern & Central Teams,External Contractors Charges,4570,TR220,24/07/2020,0000457420,783.50,Revenue,PRESTON TYRE SPECIALISTS,00109516
South Ribble Council,http://statistics.data.gov.uk/doc/local-authority/30UN,Area 3 - Parks/Leyland East West,External Contractors Charges,4570,TR221,24/07/2020,0000457735,704.65,Revenue,PRESTON TYRE SPECIALISTS,00109516
South Ribble Council,http://statistics.data.gov.uk/doc/local-authority/30UN,Property Services,Rep & Maint Premises,2020,Please undertake the repair to the window at the Civic Centre which flew open as agreed with facilities management,10/07/2020,0000457423,70.00,Revenue,PSR & Sons Joiners & Building Contractors,132887
South Ribble Council,http://statistics.data.gov.uk/doc/local-authority/30UN,Property Services,Rep & Maint Premises,2020,MATERIALS,10/07/2020,0000457423,600.00,Revenue,PSR & Sons Joiners & Building Contractors,132887
South Ribble Council,http://statistics.data.gov.uk/doc/local-authority/30UN,Property Services,Other Misc,4851,"Please provide good as per SQU 000088 quote - 18009 proforma 88 as requested by NAME REDACTED 3 x Desk Screens, 4 x Hanging Screens",24/07/2020,0000457681,329.00,Revenue,Pure Innovations,133157
South Ribble Council,http://statistics.data.gov.uk/doc/local-authority/30UN,Area 2 - Waste Transport/Eastern & Central Teams,External Contractors Charges,4570,Contract for the rental of 59 TCSV Terminals (Vehicle Tracking) 1.7.20 - 30.9.20,29/07/2020,0000457370,"2,070.00",Revenue,Quartix,131610
South Ribble Council,http://statistics.data.gov.uk/doc/local-authority/30UN,Area 3 - Parks/Leyland East West,Grounds Maint Cntrctrs Chgs,4657,1.8T Excavator On hire Monday 15th June 2020 for approximately 2 weeks. SRBC to collect,22/07/2020,0000457645,360.00,Revenue,Readyplant Limited,131535
South Ribble Council,http://statistics.data.gov.uk/doc/local-authority/30UN,Property Services,Rep & Maint Premises,2020,Please carry out works to ADDRESS REDACTED To lift and relay 5 channels to break out existing channels and relay concreting them in place,15/07/2020,0000457466,400.00,Revenue,RED ROSE BUILDING MAINTENANCE,00085410
South Ribble Council,http://statistics.data.gov.uk/doc/local-authority/30UN,Property Services,Rep & Maint Premises,2020,materials,15/07/2020,0000457466,150.00,Revenue,RED ROSE BUILDING MAINTENANCE,00085410
South Ribble Council,http://statistics.data.gov.uk/doc/local-authority/30UN,Property Services,Rep & Maint Premises,2020,"Please apply anti-climb paint to st cuthberts football pavilion, also put up signage warning of the paint .",24/07/2020,0000457760,320.00,Revenue,RED ROSE BUILDING MAINTENANCE,00085410
South Ribble Council,http://statistics.data.gov.uk/doc/local-authority/30UN,Neighbourhood Admin & Support,Materials General,4040,TRUSTEE AMENITY 5LT,10/07/2020,0000457510,432.00,Revenue,RIGBY TAYLOR LTD,00033145
South Ribble Council,http://statistics.data.gov.uk/doc/local-authority/30UN,Neighbourhood Admin & Support,Materials General,4040,TRUSTEE AMENITY 5LT,10/07/2020,0000457510,540.00,Revenue,RIGBY TAYLOR LTD,00033145
South Ribble Council,http://statistics.data.gov.uk/doc/local-authority/30UN,Area 2 - Waste Transport/Eastern & Central Teams,External Contractors Charges,4570,Refurbish Hopper Floor PJ62 UCG JFC14746,10/07/2020,0000457182,"3,068.72",Revenue,RTS Muni,132454
South Ribble Council,http://statistics.data.gov.uk/doc/local-authority/30UN,Neighbourhood Admin & Support,Materials General,4040,1 x case 3 ply ear loop  face masks (40 boxes per case),03/07/2020,0000457303,"1,100.00",Revenue,Saanro International Ltd,132788
South Ribble Council,http://statistics.data.gov.uk/doc/local-authority/30UN,Area 2 - Waste Transport/Eastern & Central Teams,Materials General,4040,1000 litres Energize Premium Hi-Foaming TFR with wax (super conc),10/07/2020,0000457509,911.15,Revenue,Saanro International Ltd,132788
South Ribble Council,http://statistics.data.gov.uk/doc/local-authority/30UN,Area 2 - Waste Transport/Eastern & Central Teams,External Contractors Charges,4570,Call outs to repair faults with pressure and water leak as per you order 18637. PWR08LH JFC14961,22/07/2020,0000457578,543.05,Revenue,Saanro International Ltd,132788
South Ribble Council,http://statistics.data.gov.uk/doc/local-authority/30UN,Information Services,Professional Fees,4520,Shredding of Confidential Waste 2020/21,24/07/2020,0000457622,477.36,Revenue,SHRED-IT LTD,00109134
South Ribble Council,http://statistics.data.gov.uk/doc/local-authority/30UN,Legal,Legal,4821,PROF SERVICES IN RELATION TO R (NAME REDACTED) V SOUTH RIBBLE BOROUGH COUNCIL AND OTHERS - JR PROCEEDINGS,08/07/2020,0000457461,250.00,Revenue,Simon Pickles LandmarkChambers,132158
South Ribble Council,http://statistics.data.gov.uk/doc/local-authority/30UN,Area 3 - Parks/Leyland East West,Capital Expenditure,C230,PROTECTIVE FENCING FOR NEW WOODLAND PLANTING AREAS AT WORDEN & FARINGTON PARKS,22/07/2020,0000457664,"1,934.00",Revenue,Singleton Landwork Ltd,131959
South Ribble Council,http://statistics.data.gov.uk/doc/local-authority/30UN,Area 3 - Parks/Leyland East West,Grounds Maint Cntrctrs Chgs,4657,Reinstatement & fencing works to Worden Park Playground,22/07/2020,0000457665,900.00,Revenue,Singleton Landwork Ltd,131959
South Ribble Council,http://statistics.data.gov.uk/doc/local-authority/30UN,Area 3 - Parks/Leyland East West,Grounds Maint Cntrctrs Chgs,4657,"Repairs to depot bays, Worden Park",22/07/2020,0000457665,"2,700.00",Revenue,Singleton Landwork Ltd,131959
South Ribble Council,http://statistics.data.gov.uk/doc/local-authority/30UN,Homelessness,Contractors Charges 5,5311,SRBC placements Smithy lodge 7-13th June 14-20th June 4 rooms x 14 nights,15/07/2020,0000457353,"1,400.00",Revenue,SMITHY LODGE GUEST HOUSE,130562
South Ribble Council,http://statistics.data.gov.uk/doc/local-authority/30UN,Homelessness,Contractors Charges 5,5311,SRBC placements Smithy lodge 7-13th June 14-20th June 4 rooms x 14 nights,15/07/2020,0000457354,"1,400.00",Revenue,SMITHY LODGE GUEST HOUSE,130562
South Ribble Council,http://statistics.data.gov.uk/doc/local-authority/30UN,Information Services,Peripherals,4248,BetterConnected+ Program for period 01/07/20 - 31/12/20,24/07/2020,0000457621,495.00,Revenue,SOCITM LIMITED,00083195
South Ribble Council,http://statistics.data.gov.uk/doc/local-authority/30UN,Information Services,Peripherals,4248,"50 x BlackBerry Spark UEM Suite User License - Advantage Support Start Date 2020-Jun-30 - End Date 2021-Jun-29 @ 113.30 each, as quote",29/07/2020,0000457854,"5,669.50",Revenue,SOFTCAT LIMITED,130963
South Ribble Council,http://statistics.data.gov.uk/doc/local-authority/30UN,Shared Financial Services,Balance Sheet,0030,monthly deducts from payroll,15/07/2020,0000457280,"1,486.62",Revenue,SOUTH RIBBLE LABOUR PARTY LOCAL GOVERNM,00120663
South Ribble Council,http://statistics.data.gov.uk/doc/local-authority/30UN,Area 2 - Waste Transport/Eastern & Central Teams,Materials General,4040,12 x bottom blades - BIN1265,10/07/2020,0000457460,263.40,Revenue,SPALDINGS,00070849
South Ribble Council,http://statistics.data.gov.uk/doc/local-authority/30UN,Area 2 - Waste Transport/Eastern & Central Teams,Materials General,4040,2 packs of ransome standard screws BZP- BIN1114,10/07/2020,0000457460,33.98,Revenue,SPALDINGS,00070849
South Ribble Council,http://statistics.data.gov.uk/doc/local-authority/30UN,Shared Financial Services,Balance Sheet,0030,monthly deducts from payroll,10/07/2020,0000457277,429.66,Revenue,ST CATHERINES HOSPICE PROMOTIONS LTD,00057749
South Ribble Council,http://statistics.data.gov.uk/doc/local-authority/30UN,Neighbourhood Admin & Support,Vehicle Running Costs,3132,16000 litres diesel @ 86.64 ppl into the feeder tank at Unit 81 Bison Place Moss Side- key for cabinet available from the main office ,01/07/2020,0000457183,"13,001.20",Revenue,Standard Fuel Oils LtdMain,131556
South Ribble Council,http://statistics.data.gov.uk/doc/local-authority/30UN,Neighbourhood Admin & Support,Vehicle Running Costs,3134,2500 litres Gas Oil @ 43.28 ppl into Tank 2,24/07/2020,0000457472,"1,083.73",Revenue,Standard Fuel Oils LtdMain,131556
South Ribble Council,http://statistics.data.gov.uk/doc/local-authority/30UN,Neighbourhood Admin & Support,Vehicle Running Costs,3132,16000 litres diesel @ 88.79 ppl into the feeder tank at Unit 81 Bison Place Moss Side- key for cabinet  available from the main office ,24/07/2020,0000457492,"14,272.99",Revenue,Standard Fuel Oils LtdMain,131556
South Ribble Council,http://statistics.data.gov.uk/doc/local-authority/30UN,Neighbourhood Admin & Support,Vehicle Running Costs,3132,16000 litres diesel @ 89.29 ppl into the feeder tank at Unit 81 Bison Place Moss Side- key for cabinet available from the main office ,24/07/2020,0000457673,"14,448.88",Revenue,Standard Fuel Oils LtdMain,131556
South Ribble Council,http://statistics.data.gov.uk/doc/local-authority/30UN,Neighbourhood Admin & Support,Vehicle Running Costs,3134,2500 litres Gas Oil @ 44.15 ppl into Tank 2,29/07/2020,0000457794,"1,103.75",Revenue,Standard Fuel Oils LtdMain,131556
South Ribble Council,http://statistics.data.gov.uk/doc/local-authority/30UN,Neighbourhood Admin & Support,Vehicle Running Costs,3132,16000 litres diesel @ 89.66 ppl into the feeder tank at Unit 81 Bison Place Moss Side - key for cabinet available from the main office ,29/07/2020,0000457802,"14,345.60",Revenue,Standard Fuel Oils LtdMain,131556
South Ribble Council,http://statistics.data.gov.uk/doc/local-authority/30UN,Regeneration,Capital Expenditure,C230,Please provide - felling of 2 trees and stump grinding on Leyland Lane. As per NAME REDACTED request. Price : 300 Cost code: 207030/C230,29/07/2020,0000457763,450.00,Revenue,Stephen Pye Tree Services,133162
South Ribble Council,http://statistics.data.gov.uk/doc/local-authority/30UN,Property Services,Rents,2401,"2020 / 2021 rental fees up until 24th July 2020 for Forward industrial estate, Talbot Road, Leyland PR25 2ZJ. Property Ref 2710/081",10/07/2020,0000457507,"16,147.50",Revenue,STONEWELL PROPERTY COMPANY LTD (In Administration),00118138
South Ribble Council,http://statistics.data.gov.uk/doc/local-authority/30UN,Property Services,Rents,2401,less rent,10/07/2020,0000457507,"-2,850.00",Revenue,STONEWELL PROPERTY COMPANY LTD (In Administration),00118138
South Ribble Council,http://statistics.data.gov.uk/doc/local-authority/30UN,Development Enterprise & Comm Mgnt,Rep & Maint Premises,2020,Annual Contract for 2020/2021 for the moveable walls x 2  Moveo  -  2 service visits per year  in the Civic Suite ref SNO-Q  M0173  as per email,08/07/2020,0000457301,500.00,Revenue,STYLE MOVEABLE PARTITION SPECIALISTS,00119917
South Ribble Council,http://statistics.data.gov.uk/doc/local-authority/30UN,Property Services,Rep & Maint Premises,2020,Works to 3 X top motors on moveable wall panels as identified in service carried out on 26th June 2020. In the Civic Suite per NAME REDACTED,10/07/2020,0000457403,960.00,Revenue,STYLE MOVEABLE PARTITION SPECIALISTS,00119917
South Ribble Council,http://statistics.data.gov.uk/doc/local-authority/30UN,Property Services,Rep & Maint Premises,2020,Rental fees for the anti vandal toilet unit & tank located at Penwortham Holme ref 523-302704,31/07/2020,0000457299,259.60,Revenue,Sunbelt Rentals UK Ltd,133149
South Ribble Council,http://statistics.data.gov.uk/doc/local-authority/30UN,Property Services,Rep & Maint Premises,2020,Rental fees for the anti vandal canteen unit located at Penwortham Holme ref 523-037516,31/07/2020,0000457545,259.60,Revenue,Sunbelt Rentals UK Ltd,133149
South Ribble Council,http://statistics.data.gov.uk/doc/local-authority/30UN,Area 3 - Parks/Leyland East West,Capital Expenditure,C230,Re: Kickabout panels from Leadale Green Playground. Remove repaint using polyester powder coating paint Ral 302G or nearest to (RED),31/07/2020,0000457911,280.00,Revenue,Superior Powder Coatings UK Ltd,132494
South Ribble Council,http://statistics.data.gov.uk/doc/local-authority/30UN,Area 2 - Waste Transport/Eastern & Central Teams,Materials General,4040,"1x RPD sensor, VO65 KRF, JFC14652",29/07/2020,0000457108,247.56,Revenue,Taylor Enginering & Fabrications Ltd,132560
South Ribble Council,http://statistics.data.gov.uk/doc/local-authority/30UN,Area 2 - Waste Transport/Eastern & Central Teams,Materials General,4040,STRIKER ASSEMBLY - VU60HLE - 14680,29/07/2020,0000457108,153.18,Revenue,Taylor Enginering & Fabrications Ltd,132560
South Ribble Council,http://statistics.data.gov.uk/doc/local-authority/30UN,Area 2 - Waste Transport/Eastern & Central Teams,Materials General,4040,1 x Omnidel Clamp Spring assembly 18520 VO65 KPZ JFC15047,29/07/2020,0000457108,320.00,Revenue,Taylor Enginering & Fabrications Ltd,132560
South Ribble Council,http://statistics.data.gov.uk/doc/local-authority/30UN,Area 2 - Waste Transport/Eastern & Central Teams,Materials General,4040,CARRIAGE,29/07/2020,0000457108,26.00,Revenue,Taylor Enginering & Fabrications Ltd,132560
South Ribble Council,http://statistics.data.gov.uk/doc/local-authority/30UN,Area 2 - Waste Transport/Eastern & Central Teams,Materials General,4040,1 x clamp spring VO65 KRD JFC14881,24/07/2020,0000457296,333.12,Revenue,Taylor Enginering & Fabrications Ltd,132560
South Ribble Council,http://statistics.data.gov.uk/doc/local-authority/30UN,Area 2 - Waste Transport/Eastern & Central Teams,Materials General,4040,CARRIAGE,24/07/2020,0000457296,45.00,Revenue,Taylor Enginering & Fabrications Ltd,132560
South Ribble Council,http://statistics.data.gov.uk/doc/local-authority/30UN,Housing,Cap Grant- Improve Grants,C570,DFG WORK FOR BEDROOM BATHROOM ADAPTATION AS PER PLANS PROVIDED BY CUSTOMER ARCHITECT AND OT REFERRAL.,15/07/2020,0000457554,"7,485.00",Revenue,TAYLOR NICOL BRICKWORK AND JOINERY LTD,133003
South Ribble Council,http://statistics.data.gov.uk/doc/local-authority/30UN,Regeneration,Other Misc,4851,"Tempo Time Credits 13,916.50 + VAT Quarter 2 2020-2021 13,916.50 + VAT Quarter 3 2020/2021 13,916.50 + VAT Quarter 4 2020/2021",31/07/2020,0000457831,"13,916.50",Revenue,Tempo Time Credits Ltd,133067
South Ribble Council,http://statistics.data.gov.uk/doc/local-authority/30UN,Area 2 - Waste Transport/Eastern & Central Teams,External Contractors Charges,4570,Spec repair VX18 KLC JFC14535,24/07/2020,0000457683,817.50,Revenue,TERBERG MATEC UK LTD,00058625
South Ribble Council,http://statistics.data.gov.uk/doc/local-authority/30UN,Neighbourhood Admin & Support,Operational Furniture & Equip,4010,LITTER PICKER - RANGER MAX - LP3035 - 35``,03/07/2020,0000457349,581.35,Revenue,The Helping Hand Company,132811
South Ribble Council,http://statistics.data.gov.uk/doc/local-authority/30UN,Legal,Publications,4142,aldridge R68,22/07/2020,0000457602,576.00,Revenue,THOMSON REUTERS,00034979
South Ribble Council,http://statistics.data.gov.uk/doc/local-authority/30UN,Area 3 - Parks/Leyland East West,Grounds Maint Cntrctrs Chgs,4657,x6 pistons for Worden Park wind pipes c/w rod and fork replacements - 1524. Delivery 152.40. Total 1676.40.,29/07/2020,0000457862,"1,676.40",Revenue,TIMBERPLAY LTD,00055440
South Ribble Council,http://statistics.data.gov.uk/doc/local-authority/30UN,Property Services,Energy Costs,2304,31/1/20 to 31/3/20,10/07/2020,0000457273,476.66,Revenue,Total Gas & power Ltd,132995
South Ribble Council,http://statistics.data.gov.uk/doc/local-authority/30UN,Property Services,Energy Costs,2304,31/3/20 to 31/5/20,10/07/2020,0000457274,992.71,Revenue,Total Gas & power Ltd,132995
South Ribble Council,http://statistics.data.gov.uk/doc/local-authority/30UN,Property Services,Energy Costs,2307,CCL,10/07/2020,0000457274,97.27,Revenue,Total Gas & power Ltd,132995
South Ribble Council,http://statistics.data.gov.uk/doc/local-authority/30UN,Property Services,Energy Costs,2304,31/1/20 to 31/3/20,10/07/2020,0000457275,589.60,Revenue,Total Gas & power Ltd,132995
South Ribble Council,http://statistics.data.gov.uk/doc/local-authority/30UN,Property Services,Energy Costs,2303,4/2/20 to 3/5/20,10/07/2020,0000457290,470.49,Revenue,Total Gas & power Ltd,132995
South Ribble Council,http://statistics.data.gov.uk/doc/local-authority/30UN,Property Services,Energy Costs,2307,CCL,10/07/2020,0000457290,23.83,Revenue,Total Gas & power Ltd,132995
South Ribble Council,http://statistics.data.gov.uk/doc/local-authority/30UN,Property Services,Energy Costs,2303,1/6/20 to 30/6/20,10/07/2020,0000457430,"2,040.38",Revenue,Total Gas & power Ltd,132995
South Ribble Council,http://statistics.data.gov.uk/doc/local-authority/30UN,Property Services,Energy Costs,2307,CCL,10/07/2020,0000457430,113.36,Revenue,Total Gas & power Ltd,132995
South Ribble Council,http://statistics.data.gov.uk/doc/local-authority/30UN,Property Services,Energy Costs,2303,1/6/20 to 30/6/20,10/07/2020,0000457431,"3,005.75",Revenue,Total Gas & power Ltd,132995
South Ribble Council,http://statistics.data.gov.uk/doc/local-authority/30UN,Property Services,Energy Costs,2307,CCL,10/07/2020,0000457431,161.11,Revenue,Total Gas & power Ltd,132995
South Ribble Council,http://statistics.data.gov.uk/doc/local-authority/30UN,Property Services,Energy Costs,2303,1/6/20 to 30/6/20,10/07/2020,0000457432,917.38,Revenue,Total Gas & power Ltd,132995
South Ribble Council,http://statistics.data.gov.uk/doc/local-authority/30UN,Property Services,Energy Costs,2307,CCL,10/07/2020,0000457432,42.58,Revenue,Total Gas & power Ltd,132995
South Ribble Council,http://statistics.data.gov.uk/doc/local-authority/30UN,Property Services,Energy Costs,2304,31/5/20 to 30/6/20,17/07/2020,0000457581,584.15,Revenue,Total Gas & power Ltd,132995
South Ribble Council,http://statistics.data.gov.uk/doc/local-authority/30UN,Property Services,Energy Costs,2307,CCL,17/07/2020,0000457581,60.08,Revenue,Total Gas & power Ltd,132995
South Ribble Council,http://statistics.data.gov.uk/doc/local-authority/30UN,Housing,Cap Expend Other,C750,Remaining Winter Warmth scheme funding to supply and install UPVC double glazing as per tender specification for 2019/20 cost 12517.52,08/07/2020,0000457347,"1,004.25",Revenue,TRADE WINDOWS & CONSERVATORIES,00119823
South Ribble Council,http://statistics.data.gov.uk/doc/local-authority/30UN,Housing,Cap Expend Other,C750,Remaining Winter Warmth scheme funding to supply and install UPVC double glazing as per tender specification for 2019/20 cost 12517.52,08/07/2020,0000457352,687.00,Revenue,TRADE WINDOWS & CONSERVATORIES,00119823
South Ribble Council,http://statistics.data.gov.uk/doc/local-authority/30UN,Housing,Cap Expend Other,C750,Remaining Winter Warmth scheme funding to supply and install UPVC double glazing as per tender specification for 2019/20 cost 12517.52,10/07/2020,0000457476,897.00,Revenue,TRADE WINDOWS & CONSERVATORIES,00119823
South Ribble Council,http://statistics.data.gov.uk/doc/local-authority/30UN,Housing,Cap Expend Other,C750,Remaining Winter Warmth scheme funding to supply and install UPVC double glazing as per tender specification for 2019/20 cost 12517.52,15/07/2020,0000457552,"1,935.00",Revenue,TRADE WINDOWS & CONSERVATORIES,00119823
South Ribble Council,http://statistics.data.gov.uk/doc/local-authority/30UN,Area 2 - Waste Transport/Eastern & Central Teams,Materials General,4040,1 x Turbo VU60 HLE JFC14783,15/07/2020,0000457128,625.00,Revenue,Turbo Force NW Ltd,133143
South Ribble Council,http://statistics.data.gov.uk/doc/local-authority/30UN,Healthy Communities,External Contractors Charges,4575,PER HEAD WAS CHARGED 9.50 - Planning Jan 15 for 25 @4.30,24/07/2020,0000456873,237.50,Revenue,UNIVERSITY OF CENTRAL LANCASHIRE,131183
South Ribble Council,http://statistics.data.gov.uk/doc/local-authority/30UN,Healthy Communities,External Contractors Charges,4575,Catering for Dementia Champion Induction session,24/07/2020,0000456873,140.00,Revenue,UNIVERSITY OF CENTRAL LANCASHIRE,131183
South Ribble Council,http://statistics.data.gov.uk/doc/local-authority/30UN,Healthy Communities,External Contractors Charges,4575,Hot meals for 55. 29th Jan.,24/07/2020,0000456873,522.50,Revenue,UNIVERSITY OF CENTRAL LANCASHIRE,131183
South Ribble Council,http://statistics.data.gov.uk/doc/local-authority/30UN,Healthy Communities,External Contractors Charges,4575,Cold Buffet @7 per head for 30 on 30th Jan at 4.30,24/07/2020,0000456873,210.00,Revenue,UNIVERSITY OF CENTRAL LANCASHIRE,131183
South Ribble Council,http://statistics.data.gov.uk/doc/local-authority/30UN,Property Services,Operational Furniture & Equip,4012,2020 / 2021 annual contract for the monthly rental of hot drinks machines at the civic centre including environmental charge.,10/07/2020,0000457351,372.89,Revenue,VENDING ENTERPRISES,00101501
South Ribble Council,http://statistics.data.gov.uk/doc/local-authority/30UN,Property Services,Agency Fees,1121,Invoices relating to June 2020 -inv number 47987 dated Week ending date 28th June and 47786 dated Week ending date 21st June.,10/07/2020,0000457185,"1,972.25",Revenue,Vivid Resourcing,132999
South Ribble Council,http://statistics.data.gov.uk/doc/local-authority/30UN,Property Services,Agency Fees,1121,Invoices relating to June 2020 - inv number 47987 dated Week ending date 28th June and 47786 dated Week ending date 21st June.,10/07/2020,0000457350,"2,184.42",Revenue,Vivid Resourcing,132999
South Ribble Council,http://statistics.data.gov.uk/doc/local-authority/30UN,Property Services,Agency Fees,1121,match against credit 2459,24/07/2020,0000457506,"1,813.00",Revenue,Vivid Resourcing,132999
South Ribble Council,http://statistics.data.gov.uk/doc/local-authority/30UN,Property Services,Agency Fees,1121,Fees for NAME REDACTED 29th & 30th June 2020,22/07/2020,0000457649,600.25,Revenue,Vivid Resourcing,132999
South Ribble Council,http://statistics.data.gov.uk/doc/local-authority/30UN,Property Services,Agency Fees,1121,Estates Surveyor consultancy fees for NAME REDACTED from 1st July 2020 for a period of 4 months 4 days per week,22/07/2020,0000457659,"1,212.75",Revenue,Vivid Resourcing,132999
South Ribble Council,http://statistics.data.gov.uk/doc/local-authority/30UN,Property Services,Agency Fees,1121,Estates Surveyor consultancy fees for NAME REDACTED from 1st July 2020 for a period of 4 months 4 days per week,24/07/2020,0000457667,"1,539.58",Revenue,Vivid Resourcing,132999
South Ribble Council,http://statistics.data.gov.uk/doc/local-authority/30UN,Property Services,Agency Fees,1121,Estates Surveyor consultancy fees for NAME REDACTED from 1st July 2020 for a period of 4 months 4 days per week,24/07/2020,0000457786,"1,522.92",Revenue,Vivid Resourcing,132999
South Ribble Council,http://statistics.data.gov.uk/doc/local-authority/30UN,Property Services,Agency Fees,1121,Estates Surveyor consultancy fees for NAME REDACTED from 1st July 2020 for a period of 4 months 4 days per week,31/07/2020,0000457885,"1,588.58",Revenue,Vivid Resourcing,132999
South Ribble Council,http://statistics.data.gov.uk/doc/local-authority/30UN,Information Services,Peripherals,4247,01 july 2020,08/07/2020,0000457339,"2,404.20",Revenue,VODAFONE RE:CABLE & WIRELESS UK,130810
South Ribble Council,http://statistics.data.gov.uk/doc/local-authority/30UN,Information Services,Peripherals,4269,23 jun 20,08/07/2020,0000457340,"3,796.06",Revenue,VODAFONE RE:CABLE & WIRELESS UK,130810
South Ribble Council,http://statistics.data.gov.uk/doc/local-authority/30UN,Information Services,Peripherals,4269,25 Jul 2020,29/07/2020,0000457864,"3,360.29",Revenue,VODAFONE RE:CABLE & WIRELESS UK,130810
South Ribble Council,http://statistics.data.gov.uk/doc/local-authority/30UN,Legal,Legal,4821,PROFESSIONAL SERVICES IN RELATION TO LEISURE SERVICES PREMISES ADVICE - 16 JUNE - 24 JUNE 2020,03/07/2020,0000457313,"1,323.00",Revenue,WEIGHTMANS LLP,00120867
South Ribble Council,http://statistics.data.gov.uk/doc/local-authority/30UN,Area 3 - Parks/Leyland East West,Grounds Maint Cntrctrs Chgs,4657,Tree works at Hurst Grange Park as per your quotation,01/07/2020,0000456766,"3,335.00",Revenue,WESTFIELD TREE SERVICES LTD,00114226
South Ribble Council,http://statistics.data.gov.uk/doc/local-authority/30UN,Area 3 - Parks/Leyland East West,Grounds Maint Cntrctrs Chgs,4657,x2 large tethered beaters for chimes @200.00 each with 25.00 for delivery.,29/07/2020,0000457863,425.00,Revenue,WICKSTEED LEISURE LTD,00038661
South Ribble Council,http://statistics.data.gov.uk/doc/local-authority/30UN,Area 2 - Waste Transport/Eastern & Central Teams,Materials General,4040,1 x Grease Gun - M18GG-0 M18,10/07/2020,0000457394,155.00,Revenue,WILLIAM MOORE & SON (PRESTON) LTD,00028312
South Ribble Council,http://statistics.data.gov.uk/doc/local-authority/30UN,Area 2 - Waste Transport/Eastern & Central Teams,Materials General,4040,1 x coolant testing kit- 33190500,10/07/2020,0000457394,332.11,Revenue,WILLIAM MOORE & SON (PRESTON) LTD,00028312
South Ribble Council,http://statistics.data.gov.uk/doc/local-authority/30UN,Area 2 - Waste Transport/Eastern & Central Teams,Materials General,4040,1 x induction heater kit - 960400SP,10/07/2020,0000457394,695.00,Revenue,WILLIAM MOORE & SON (PRESTON) LTD,00028312
South Ribble Council,http://statistics.data.gov.uk/doc/local-authority/30UN,Area 3 - Parks/Leyland East West,Operational Furniture & Equip,4019,15 X Standard Rectangular Plaques@25.00 each,31/07/2020,0000457657,375.00,Revenue,WOODSTOCK SIGNS,00039039
